Workbook

Sheet Ofgem
A1: Parameter | B1: AICR | C1: Gearing | D1: FFO/Net Debt | E1: RCF/Net Debt | F1: FFO Interest Cover
A2: Baa1 Target | B2: ='Rating (Ofgem-notional)'!$C$77 -> 1.4 | C2: ='Rating (Ofgem-notional)'!$H$78 -> 0.75 | D2: ='Rating (Ofgem-notional)'!$D$77 -> 0.11 | E2: ='Rating (Ofgem-notional)'!$E$77 -> 0.07 | F2: 2.5
A3: Baseline | B3: 1.3 | C3: 0.7 | D3: 0.09 | E3: 0.05
A4: Real to nominal prices conversion factor | B4: =[7]Input!AP92 -> 1.079223444 | C4: =[7]Input!AQ92 -> 1.100804588 | D4: =[7]Input!AR92 -> 1.122817289 | E4: =[7]Input!AS92 -> 1.145270176 | F4: =[7]Input!AT92 -> 1.168172052
A6: Table 7.2. Financial Parameters (notional): Ofgem's Base case | G6: £m, 18/19 prices
A7: Parameter | B7: 2021/22 | C7: 2022/23 | D7: 2023/24 | E7: 2024/25 | F7: 2025/26 | G7: GD-2 Average
A8: Closing RAV | B8: =[7]ScenarioRun_AllOutputData!AP101/B4 -> 2277.985136 | C8: =[7]ScenarioRun_AllOutputData!AQ101/C4 -> 2326.676242 | D8: =[7]ScenarioRun_AllOutputData!AR101/D4 -> 2371.606904 | E8: =[7]ScenarioRun_AllOutputData!AS101/E4 -> 2407.678559 | F8: =[7]ScenarioRun_AllOutputData!AT101/F4 -> 2433.654277 | G8: =AVERAGE(B8:F8) -> 2363.520223
A9: Fast Money, % | B9: =[7]TIM!AP144/([7]TIM!AP144+[7]TIM!AP146) -> 0.3524244512 | C9: =[7]TIM!AQ144/([7]TIM!AQ144+[7]TIM!AQ146) -> 0.3390984116 | D9: =[7]TIM!AR144/([7]TIM!AR144+[7]TIM!AR146) -> 0.3370494412 | E9: =[7]TIM!AS144/([7]TIM!AS144+[7]TIM!AS146) -> 0.3393271912 | F9: =[7]TIM!AT144/([7]TIM!AT144+[7]TIM!AT146) -> 0.3504758783 | G9: =AVERAGE(B9:F9) -> 0.3436750747
A10: Slow Money, % | B10: =[7]TIM!AP146/([7]TIM!AP144+[7]TIM!AP146) -> 0.6475755488 | C10: =[7]TIM!AQ146/([7]TIM!AQ144+[7]TIM!AQ146) -> 0.6609015884 | D10: =[7]TIM!AR146/([7]TIM!AR144+[7]TIM!AR146) -> 0.6629505588 | E10: =[7]TIM!AS146/([7]TIM!AS144+[7]TIM!AS146) -> 0.6606728088 | F10: =[7]TIM!AT146/([7]TIM!AT144+[7]TIM!AT146) -> 0.6495241217 | G10: 0.6563249253
A11: Fast pot expenditure | B11: =[7]ScenarioRun_AllOutputData!AP102/B4 -> 87.82689644 | C11: =[7]ScenarioRun_AllOutputData!AQ102/C4 -> 86.56301282 | D11: =[7]ScenarioRun_AllOutputData!AR102/D4 -> 85.81641898 | E11: =[7]ScenarioRun_AllOutputData!AS102/E4 -> 84.19843206 | F11: =[7]ScenarioRun_AllOutputData!AT102/F4 -> 84.90971894 | G11: 85.86289585
A12: Non-controllable opex | B12: =[7]ScenarioRun_AllOutputData!AP103/B4 -> 95.2060747 | C12: =[7]ScenarioRun_AllOutputData!AQ103/C4 -> 95.07182142 | D12: =[7]ScenarioRun_AllOutputData!AR103/D4 -> 92.8992488 | E12: =[7]ScenarioRun_AllOutputData!AS103/E4 -> 91.38408185 | F12: =[7]ScenarioRun_AllOutputData!AT103/F4 -> 89.38540756 | G12: 92.78932687
A13: RAV depreciation | B13: =[7]ScenarioRun_AllOutputData!AP104/B4 -> 115.917695 | C13: =[7]ScenarioRun_AllOutputData!AQ104/C4 -> 119.8137846 | D13: =[7]ScenarioRun_AllOutputData!AR104/D4 -> 123.8636924 | E13: =[7]ScenarioRun_AllOutputData!AS104/E4 -> 127.763379 | F13: =[7]ScenarioRun_AllOutputData!AT104/F4 -> 131.2843566 | G13: 123.7285815
A14: Return | B14: =[7]ScenarioRun_AllOutputData!AP105/B4 -> 65.07777832 | C14: =[7]ScenarioRun_AllOutputData!AQ105/C4 -> 65.63378774 | D14: =[7]ScenarioRun_AllOutputData!AR105/D4 -> 66.39896676 | E14: =[7]ScenarioRun_AllOutputData!AS105/E4 -> 67.22233599 | F14: =[7]ScenarioRun_AllOutputData!AT105/F4 -> 67.90383545 | G14: 66.44734085
A15: Equity issuance cost | B15: =[7]ScenarioRun_AllOutputData!AP106/B4 -> 5.47248465 | C15: =[7]ScenarioRun_AllOutputData!AQ106/C4 -> 0 | D15: =[7]ScenarioRun_AllOutputData!AR106/D4 -> 0 | E15: =[7]ScenarioRun_AllOutputData!AS106/E4 -> 0 | F15: =[7]ScenarioRun_AllOutputData!AT106/F4 -> 0 | G15: 1.09449693
A16: Additional income | B16: =[7]ScenarioRun_AllOutputData!AP107/B4 -> 0 | C16: =[7]ScenarioRun_AllOutputData!AQ107/C4 -> 0 | D16: =[7]ScenarioRun_AllOutputData!AR107/D4 -> 0 | E16: =[7]ScenarioRun_AllOutputData!AS107/E4 -> 0 | F16: =[7]ScenarioRun_AllOutputData!AT107/F4 -> 0 | G16: 0
A17: Core DARTs | B17: =[7]ScenarioRun_AllOutputData!AP108/B4 -> 4.2 | C17: =[7]ScenarioRun_AllOutputData!AQ108/C4 -> 4.2 | D17: =[7]ScenarioRun_AllOutputData!AR108/D4 -> 4.2 | E17: =[7]ScenarioRun_AllOutputData!AS108/E4 -> 4.2 | F17: =[7]ScenarioRun_AllOutputData!AT108/F4 -> 4.2 | G17: 4.2
A18: Recalculated base revenue (except tax allowance) | B18: =[7]ScenarioRun_AllOutputData!AP109/B4 -> 373.7009291 | C18: =[7]ScenarioRun_AllOutputData!AQ109/C4 -> 371.2824066 | D18: =[7]ScenarioRun_AllOutputData!AR109/D4 -> 373.178327 | E18: =[7]ScenarioRun_AllOutputData!AS109/E4 -> 374.7682289 | F18: =[7]ScenarioRun_AllOutputData!AT109/F4 -> 377.6833186 | G18: 374.122642
A19: Tax allowance | B19: =[7]ScenarioRun_AllOutputData!AP110/B4 -> 17.99259368 | C19: =[7]ScenarioRun_AllOutputData!AQ110/C4 -> 17.07448826 | D19: =[7]ScenarioRun_AllOutputData!AR110/D4 -> 17.4351615 | E19: =[7]ScenarioRun_AllOutputData!AS110/E4 -> 17.83896198 | F19: =[7]ScenarioRun_AllOutputData!AT110/F4 -> 18.30356514 | G19: 17.72895411
A20: Recalculated base revenue | B20: =[7]ScenarioRun_AllOutputData!AP111/B4 -> 391.6935228 | C20: =[7]ScenarioRun_AllOutputData!AQ111/C4 -> 388.3568948 | D20: =[7]ScenarioRun_AllOutputData!AR111/D4 -> 390.6134885 | E20: =[7]ScenarioRun_AllOutputData!AS111/E4 -> 392.6071909 | F20: =[7]ScenarioRun_AllOutputData!AT111/F4 -> 395.9868837 | G20: 391.8515961
A21: Incentive income | B21: =B22-B20 -> 4.44571234 | C21: =C22-C20 -> 4.539269074 | D21: 4.632187562 | E21: 4.712501232 | F21: 4.774017007 | G21: 4.620737443
A22: Total revenue | B22: =[7]ScenarioRun_AllOutputData!AP112/B4 -> 396.1392351 | C22: =[7]ScenarioRun_AllOutputData!AQ112/C4 -> 392.8961639 | D22: =[7]ScenarioRun_AllOutputData!AR112/D4 -> 395.245676 | E22: =[7]ScenarioRun_AllOutputData!AS112/E4 -> 397.3196921 | F22: =[7]ScenarioRun_AllOutputData!AT112/F4 -> 400.7609007 | G22: 396.4723336
A23: Costs | B23: =SUM([7]FinancialStatements!AP72:AP77)/B4 -> -192.7054558 | C23: =SUM([7]FinancialStatements!AQ72:AQ77)/C4 -> -185.8348342 | D23: =SUM([7]FinancialStatements!AR72:AR77)/D4 -> -182.9156678 | E23: =SUM([7]FinancialStatements!AS72:AS77)/E4 -> -179.7825139 | F23: =SUM([7]FinancialStatements!AT72:AT77)/F4 -> -178.4951265 | G23: -183.9467196
A24: EBITDA | B24: =SUM(B22:B23) -> 203.4337793 | C24: =SUM(C22:C23) -> 207.0613297 | D24: 212.3300083 | E24: 217.5371782 | F24: 222.2657742 | G24: 212.5256139
A25: Interest | B25: =SUM([7]FinancialStatements!AP87:AP88)/B4 -> -53.49120086 | C25: =SUM([7]FinancialStatements!AQ87:AQ88)/C4 -> -53.84897781 | D25: =SUM([7]FinancialStatements!AR87:AR88)/D4 -> -54.37552155 | E25: =SUM([7]FinancialStatements!AS87:AS88)/E4 -> -54.89348203 | F25: =SUM([7]FinancialStatements!AT87:AT88)/F4 -> -55.16024425 | G25: -54.3538853
A26: Principal inflation accretion | B26: =-[7]FinancialStatements!AP88/B4 -> 6.537362591 | C26: =-[7]FinancialStatements!AQ88/C4 -> 6.731563946 | D26: =-[7]FinancialStatements!AR88/D4 -> 6.885191645 | E26: =-[7]FinancialStatements!AS88/E4 -> 7.005070261 | F26: =-[7]FinancialStatements!AT88/F4 -> 7.075959477 | G26: 6.847029584
A27: Capital expenditure | B27: =[7]FinancialStatements!AP120/B4 -> -161.3808306 | C27: =[7]FinancialStatements!AQ120/C4 -> -168.7110016 | D27: =[7]FinancialStatements!AR120/D4 -> -168.7943547 | E27: =[7]FinancialStatements!AS120/E4 -> -163.9350339 | F27: =[7]FinancialStatements!AT120/F4 -> -157.3600753 | G27: -164.0362592
A28: Tax paid | B28: =[7]FinancialStatements!AP93/B4 -> -17.98889165 | C28: =[7]FinancialStatements!AQ93/C4 -> -17.07085881 | D28: =[7]FinancialStatements!AR93/D4 -> -17.43160321 | E28: =[7]FinancialStatements!AS93/E4 -> -17.83547345 | F28: =[7]FinancialStatements!AT93/F4 -> -18.300145 | G28: -17.72539443
A29: Operating Cash Flow | B29: =SUM(B24:B28) -> -22.88978125 | C29: =SUM(C24:C28) -> -25.83794461 | D29: =SUM(D24:D28) -> -21.38627954 | E29: =SUM(E24:E28) -> -12.12174091 | F29: =SUM(F24:F28) -> -1.478730886 | G29: -16.74289544
A30: Disposal proceeds | B30: =[7]FinancialStatements!AP122/B4 -> 0 | C30: =[7]FinancialStatements!AQ122/C4 -> 0.206111128 | D30: =[7]FinancialStatements!AR122/D4 -> 0 | E30: =[7]FinancialStatements!AS122/E4 -> 0.1 | F30: =[7]FinancialStatements!AT122/F4 -> 0.1 | G30: 0.08122222559
A31: Dividend | B31: =[7]FinancialStatements!AP115/B4 -> -27.33582163 | C31: =[7]FinancialStatements!AQ115/C4 -> -27.9201149 | D31: =[7]FinancialStatements!AR115/D4 -> -28.45928285 | E31: =[7]FinancialStatements!AS115/E4 -> -28.8921427 | F31: =[7]FinancialStatements!AT115/F4 -> -29.20385133 | G31: -28.36224268
A32: Net Cash Flow | B32: =SUM(B29:B31) -> -50.22560287 | C32: =SUM(C29:C31) -> -53.55194838 | D32: -49.84556239 | E32: -40.91388361 | F32: -30.58258221 | G32: -45.0239159
A34: Table 7.3. Credit Metrics (notional): Ofgem's Base case
A35: Parameter | B35: 2021/22 | C35: 2022/23 | D35: 2023/24 | E35: 2024/25 | F35: 2025/26 | G35: GD-2 Average
A36: Adjusted ICR [>1.4x] | B36: =[7]ScenarioRun_AllOutputData!AP85 -> 1.480677474 | C36: =[7]ScenarioRun_AllOutputData!AQ85 -> 1.489323183 | D36: =[7]ScenarioRun_AllOutputData!AR85 -> 1.495697218 | E36: =[7]ScenarioRun_AllOutputData!AS85 -> 1.502134536 | F36: =[7]ScenarioRun_AllOutputData!AT85 -> 1.51146789 | G36: =AVERAGE(B36:F36) -> 1.49586006
A37: Gearing [<75%] | B37: =[7]ScenarioRun_AllOutputData!AP82 -> 0.6014802125 | C37: =[7]ScenarioRun_AllOutputData!AQ82 -> 0.6032589391 | D37: =[7]ScenarioRun_AllOutputData!AR82 -> 0.6041496038 | E37: =[7]ScenarioRun_AllOutputData!AS82 -> 0.6033354526 | F37: =[7]ScenarioRun_AllOutputData!AT82 -> 0.6006691314 | G37: =AVERAGE(B37:F37) -> 0.6025786679
A38: FFO/Net Debt [>9%] | B38: =[7]ScenarioRun_AllOutputData!AP87 -> 0.09630240078 | C38: =[7]ScenarioRun_AllOutputData!AQ87 -> 0.0969927359 | D38: =[7]ScenarioRun_AllOutputData!AR87 -> 0.09807286323 | E38: =[7]ScenarioRun_AllOutputData!AS87 -> 0.09968398931 | F38: =[7]ScenarioRun_AllOutputData!AT87 -> 0.1017921926 | G38: 0.09856883636
A39: RCF/Net Debt [>7%] | B39: =[7]ScenarioRun_AllOutputData!AP88 -> 0.07635161977 | C39: =[7]ScenarioRun_AllOutputData!AQ88 -> 0.07710078036 | D39: =[7]ScenarioRun_AllOutputData!AR88 -> 0.0782102333 | E39: =[7]ScenarioRun_AllOutputData!AS88 -> 0.07979455641 | F39: =[7]ScenarioRun_AllOutputData!AT88 -> 0.0818144721 | G39: 0.07865433239
A40: FFO Interest Cover [>2.5x] | B40: =[7]ScenarioRun_AllOutputData!AP83 -> 3.466760563 | C40: =[7]ScenarioRun_AllOutputData!AQ83 -> 3.528142021 | D40: =[7]ScenarioRun_AllOutputData!AR83 -> 3.584238665 | E40: =[7]ScenarioRun_AllOutputData!AS83 -> 3.637922187 | F40: =[7]ScenarioRun_AllOutputData!AT83 -> 3.697630637 | G40: 3.582938815
A42: Table 7.4. Credit Metrics (actual): Ofgem's Base case
A43: Parameter | B43: 2021/22 | C43: 2022/23 | D43: 2023/24 | E43: 2024/25 | F43: 2025/26 | G43: GD-2 Average
A44: Adjusted ICR [>1.4x] | B44: =[7]ScenarioRun_AllOutputData!AP153 -> 1.248354948 | C44: =[7]ScenarioRun_AllOutputData!AQ153 -> 1.30179815 | D44: =[7]ScenarioRun_AllOutputData!AR153 -> 1.289403504 | E44: =[7]ScenarioRun_AllOutputData!AS153 -> 1.34592217 | F44: =[7]ScenarioRun_AllOutputData!AT153 -> 1.3743154 | G44: =AVERAGE(B44:F44) -> 1.311958835
A45: Gearing [<75%] | B45: =[7]ScenarioRun_AllOutputData!AP150 -> 0.6729580435 | C45: =[7]ScenarioRun_AllOutputData!AQ150 -> 0.6803718123 | D45: =[7]ScenarioRun_AllOutputData!AR150 -> 0.6866274404 | E45: =[7]ScenarioRun_AllOutputData!AS150 -> 0.6904237456 | F45: =[7]ScenarioRun_AllOutputData!AT150 -> 0.6922594397 | G45: =AVERAGE(B45:F45) -> 0.6845280963
A46: FFO/Net Debt [>9%] | B46: =[7]ScenarioRun_AllOutputData!AP155 -> 0.08312867022 | C46: =[7]ScenarioRun_AllOutputData!AQ155 -> 0.08526053563 | D46: =[7]ScenarioRun_AllOutputData!AR155 -> 0.08584234734 | E46: =[7]ScenarioRun_AllOutputData!AS155 -> 0.08792300906 | F46: =[7]ScenarioRun_AllOutputData!AT155 -> 0.08959491508 | G46: 0.08634989547
A47: RCF/Net Debt [>7%] | B47: =[7]ScenarioRun_AllOutputData!AP156 -> 0.05340913683 | C47: =[7]ScenarioRun_AllOutputData!AQ156 -> 0.05586484288 | D47: =[7]ScenarioRun_AllOutputData!AR156 -> 0.05671437853 | E47: =[7]ScenarioRun_AllOutputData!AS156 -> 0.05895511132 | F47: =[7]ScenarioRun_AllOutputData!AT156 -> 0.06070374365 | G47: 0.05712944264
A48: FFO Interest Cover [>2.5x] | B48: =[7]ScenarioRun_AllOutputData!AP151 -> 3.747898995 | C48: =[7]ScenarioRun_AllOutputData!AQ151 -> 3.68792897 | D48: =[7]ScenarioRun_AllOutputData!AR151 -> 3.540666705 | E48: =[7]ScenarioRun_AllOutputData!AS151 -> 3.74884719 | F48: =[7]ScenarioRun_AllOutputData!AT151 -> 3.874150167 | G48: 3.719898405
A50: Table 7.09. Credit Metrics (actual): 0% dividend pay-out ratio.
A51: Parameter | B51: 2021/22 | C51: 2022/23 | D51: 2023/24 | E51: 2024/25 | F51: 2025/26 | G51: GD-2 Average
A52: Adjusted ICR [>1.4x] | B52: =[7]ScenarioRun_AllOutputData!AP221 -> 1.274242545 | C52: =[7]ScenarioRun_AllOutputData!AQ221 -> 1.351070256 | D52: =[7]ScenarioRun_AllOutputData!AR221 -> 1.362299829 | E52: =[7]ScenarioRun_AllOutputData!AS221 -> 1.480311533 | F52: =[7]ScenarioRun_AllOutputData!AT221 -> 1.56209213 | G52: =AVERAGE(B52:F52) -> 1.406003259
A53: Gearing [<75%] | B53: =[7]ScenarioRun_AllOutputData!AP218 -> 0.6525619093 | C53: =[7]ScenarioRun_AllOutputData!AQ218 -> 0.6400467353 | D53: =[7]ScenarioRun_AllOutputData!AR218 -> 0.6266645973 | E53: =[7]ScenarioRun_AllOutputData!AS218 -> 0.6106371833 | F53: =[7]ScenarioRun_AllOutputData!AT218 -> 0.5924558198 | G53: =AVERAGE(B53:F53) -> 0.624473249
A54: FFO/Net Debt [>9%] | B54: =[7]ScenarioRun_AllOutputData!AP223 -> 0.08633394264 | C54: =[7]ScenarioRun_AllOutputData!AQ223 -> 0.09179976437 | D54: =[7]ScenarioRun_AllOutputData!AR223 -> 0.09593484922 | E54: =[7]ScenarioRun_AllOutputData!AS223 -> 0.1024897284 | F54: =[7]ScenarioRun_AllOutputData!AT223 -> 0.1087657696 | G54: 0.09706481084
A55: RCF/Net Debt [>7%] | B55: =[7]ScenarioRun_AllOutputData!AP224 -> 0.08633394264 | C55: =[7]ScenarioRun_AllOutputData!AQ224 -> 0.09179976437 | D55: =[7]ScenarioRun_AllOutputData!AR224 -> 0.09593484922 | E55: =[7]ScenarioRun_AllOutputData!AS224 -> 0.1024897284 | F55: =[7]ScenarioRun_AllOutputData!AT224 -> 0.1087657696 | G55: 0.09706481084
A56: FFO Interest Cover [>2.5x] | B56: =[7]ScenarioRun_AllOutputData!AP219 -> 3.833792055 | C56: =[7]ScenarioRun_AllOutputData!AQ219 -> 3.841079749 | D56: =[7]ScenarioRun_AllOutputData!AR219 -> 3.760166833 | E56: =[7]ScenarioRun_AllOutputData!AS219 -> 4.157852995 | F56: =[7]ScenarioRun_AllOutputData!AT219 -> 4.451700869 | G56: 4.0089185
A58: Table 7.10. Credit Metrics (actual): reduced gearing.
A59: Parameter | B59: 2021/22 | C59: 2022/23 | D59: 2023/24 | E59: 2024/25 | F59: 2025/26 | G59: GD-2 Average
A60: Adjusted ICR [>1.4x] | B60: =[7]ScenarioRun_AllOutputData!AP187 -> 1.18644487 | C60: =[7]ScenarioRun_AllOutputData!AQ187 -> 1.384470852 | D60: =[7]ScenarioRun_AllOutputData!AR187 -> 1.354056227 | E60: =[7]ScenarioRun_AllOutputData!AS187 -> 1.423710874 | F60: =[7]ScenarioRun_AllOutputData!AT187 -> 1.448116012 | G60: =AVERAGE(B60:F60) -> 1.359359767
A61: Gearing [<75%] | B61: =[7]ScenarioRun_AllOutputData!AP184 -> 0.6130552835 | C61: =[7]ScenarioRun_AllOutputData!AQ184 -> 0.6216531128 | D61: =[7]ScenarioRun_AllOutputData!AR184 -> 0.6290991455 | E61: =[7]ScenarioRun_AllOutputData!AS184 -> 0.6337310001 | F61: =[7]ScenarioRun_AllOutputData!AT184 -> 0.6362371839 | G61: =AVERAGE(B61:F61) -> 0.6267551452
A62: FFO/Net Debt [>9%] | B62: =[7]ScenarioRun_AllOutputData!AP189 -> 0.08865255378 | C62: =[7]ScenarioRun_AllOutputData!AQ189 -> 0.09527535155 | D62: =[7]ScenarioRun_AllOutputData!AR189 -> 0.09536352229 | E62: =[7]ScenarioRun_AllOutputData!AS189 -> 0.09758305444 | F62: =[7]ScenarioRun_AllOutputData!AT189 -> 0.09910948574 | G62: 0.09519679356
A63: RCF/Net Debt [>7%] | B63: =[7]ScenarioRun_AllOutputData!AP190 -> 0.05602907009 | C63: =[7]ScenarioRun_AllOutputData!AQ190 -> 0.06310306714 | D63: =[7]ScenarioRun_AllOutputData!AR190 -> 0.06357193139 | E63: =[7]ScenarioRun_AllOutputData!AS190 -> 0.0660237265 | F63: =[7]ScenarioRun_AllOutputData!AT190 -> 0.06767437528 | G63: 0.06328043408
A64: FFO Interest Cover [>2.5x] | B64: =[7]ScenarioRun_AllOutputData!AP185 -> 3.926221529 | C64: =[7]ScenarioRun_AllOutputData!AQ185 -> 3.944897664 | D64: =[7]ScenarioRun_AllOutputData!AR185 -> 3.735344296 | E64: =[7]ScenarioRun_AllOutputData!AS185 -> 3.985592351 | F64: =[7]ScenarioRun_AllOutputData!AT185 -> 4.101140994 | G64: 3.938639367
A66: Table 7.6. Sensitivity analysis (notional), average values for GD-2
A67: Scenario | B67: AICR | C67: Gearing | D67: FFO/Net Debt | E67: RCF/Net Debt
A68: Ofgem Base case | B68: =AVERAGE([7]ScenarioRun_AllOutputData!$AP$85:$AT$85) -> 1.49586006 | C68: =AVERAGE([7]ScenarioRun_AllOutputData!$AP$82:$AT$82) -> 0.6025786679 | D68: =AVERAGE([7]ScenarioRun_AllOutputData!$AP$87:$AT$87) -> 0.09856883636 | E68: =AVERAGE([7]ScenarioRun_AllOutputData!$AP$88:$AT$88) -> 0.07865433239
A69: High interest rates (+1%) | B69: =AVERAGE([7]ScenarioRun_AllOutputData!$AP$255:$AT$255) -> 1.516304237 | C69: =AVERAGE([7]ScenarioRun_AllOutputData!$AP$252:$AT$252) -> 0.5995943633 | D69: =AVERAGE([7]ScenarioRun_AllOutputData!$AP$257:$AT$257) -> 0.1008466932 | E69: =AVERAGE([7]ScenarioRun_AllOutputData!$AP$258:$AT$258) -> 0.08083292096
A70: Low interest rates (-1%) | B70: =AVERAGE([7]ScenarioRun_AllOutputData!$AP$425:$AT$425) -> 1.474875465 | C70: =AVERAGE([7]ScenarioRun_AllOutputData!$AP$422:$AT$422) -> 0.6055385952 | D70: =AVERAGE([7]ScenarioRun_AllOutputData!$AP$427:$AT$427) -> 0.09633897532 | E70: =AVERAGE([7]ScenarioRun_AllOutputData!$AP$428:$AT$428) -> 0.07652174437
A71: High inflation (+1%) | B71: =AVERAGE([7]ScenarioRun_AllOutputData!$AP$595:$AT$595) -> 1.530840337 | C71: =AVERAGE([7]ScenarioRun_AllOutputData!$AP$592:$AT$592) -> 0.5895158256 | D71: =AVERAGE([7]ScenarioRun_AllOutputData!$AP$597:$AT$597) -> 0.09927535673 | E71: =AVERAGE([7]ScenarioRun_AllOutputData!$AP$598:$AT$598) -> 0.07891716392
A72: Low inflation (-1%) | B72: =AVERAGE([7]ScenarioRun_AllOutputData!$AP$765:$AT$765) -> 1.461440332 | C72: =AVERAGE([7]ScenarioRun_AllOutputData!$AP$762:$AT$762) -> 0.6161641264 | D72: =AVERAGE([7]ScenarioRun_AllOutputData!$AP$767:$AT$767) -> 0.09791971939 | E72: =AVERAGE([7]ScenarioRun_AllOutputData!$AP$768:$AT$768) -> 0.07844226611
A73: High CPIH-RPI divergence (+0.5%) | B73: =AVERAGE([7]ScenarioRun_AllOutputData!$AP$935:$AT$935) -> 1.478580393 | C73: =AVERAGE([7]ScenarioRun_AllOutputData!$AP$932:$AT$932) -> 0.6093043446 | D73: =AVERAGE([7]ScenarioRun_AllOutputData!$AP$937:$AT$937) -> 0.09823711617 | E73: =AVERAGE([7]ScenarioRun_AllOutputData!$AP$938:$AT$938) -> 0.07854196452
A74: Low CPIH-RPI divergence (-0.5%) | B74: =AVERAGE([7]ScenarioRun_AllOutputData!$AP$1105:$AT$1105) -> 1.513279865 | C74: =AVERAGE([7]ScenarioRun_AllOutputData!$AP$1102:$AT$1102) -> 0.5959836176 | D74: =AVERAGE([7]ScenarioRun_AllOutputData!$AP$1107:$AT$1107) -> 0.09891490742 | E74: =AVERAGE([7]ScenarioRun_AllOutputData!$AP$1108:$AT$1108) -> 0.07877939158
A75: RPI ILD | B75: =AVERAGE([7]ScenarioRun_AllOutputData!$AP$119:$AT$119) -> 1.620990376 | C75: =AVERAGE([7]ScenarioRun_AllOutputData!$AP$116:$AT$116) -> 0.6025458079 | D75: =AVERAGE([7]ScenarioRun_AllOutputData!$AP$121:$AT$121) -> 0.09858770682 | E75: =AVERAGE([7]ScenarioRun_AllOutputData!$AP$122:$AT$122) -> 0.07867211674
A76: High ILD proportion (+5%) | B76: =AVERAGE([7]ScenarioRun_AllOutputData!$AP$2465:$AT$2465) -> 1.540322132 | C76: =AVERAGE([7]ScenarioRun_AllOutputData!$AP$2462:$AT$2462) -> 0.6025750933 | D76: =AVERAGE([7]ScenarioRun_AllOutputData!$AP$2467:$AT$2467) -> 0.09857084624 | E76: =AVERAGE([7]ScenarioRun_AllOutputData!$AP$2468:$AT$2468) -> 0.07865622413
A77: Low ILD proportion (-5%) | B77: =AVERAGE([7]ScenarioRun_AllOutputData!$AP$2635:$AT$2635) -> 1.453893171 | C77: =AVERAGE([7]ScenarioRun_AllOutputData!$AP$2632:$AT$2632) -> 0.6025822424 | D77: =AVERAGE([7]ScenarioRun_AllOutputData!$AP$2637:$AT$2637) -> 0.0985668265 | E77: =AVERAGE([7]ScenarioRun_AllOutputData!$AP$2638:$AT$2638) -> 0.07865244067
A78: Totex underperformance (-10%) | B78: =AVERAGE([7]ScenarioRun_AllOutputData!$AP$1785:$AT$1785) -> 1.406400285 | C78: =AVERAGE([7]ScenarioRun_AllOutputData!$AP$1782:$AT$1782) -> 0.618536139 | D78: =AVERAGE([7]ScenarioRun_AllOutputData!$AP$1787:$AT$1787) -> 0.09280778878 | E78: =AVERAGE([7]ScenarioRun_AllOutputData!$AP$1788:$AT$1788) -> 0.07340458172
A79: Totex outperformance (+10%) | B79: =AVERAGE([7]ScenarioRun_AllOutputData!$AP$1615:$AT$1615) -> 1.592232819 | C79: =AVERAGE([7]ScenarioRun_AllOutputData!$AP$1612:$AT$1612) -> 0.5861103299 | D79: =AVERAGE([7]ScenarioRun_AllOutputData!$AP$1617:$AT$1617) -> 0.1048751307 | E79: =AVERAGE([7]ScenarioRun_AllOutputData!$AP$1618:$AT$1618) -> 0.08439750655
A80: Zero RoRe outperformance | B80: =AVERAGE([7]ScenarioRun_AllOutputData!$AP$1955:$AT$1955) -> 1.387075142 | C80: =AVERAGE([7]ScenarioRun_AllOutputData!$AP$1952:$AT$1952) -> 0.6085727532 | D80: =AVERAGE([7]ScenarioRun_AllOutputData!$AP$1957:$AT$1957) -> 0.09406746209 | E80: =AVERAGE([7]ScenarioRun_AllOutputData!$AP$1958:$AT$1958) -> 0.07434874249
A81: RoRe outperformance (+2%) | B81: =AVERAGE([7]ScenarioRun_AllOutputData!$AP$2125:$AT$2125) -> 1.950726759 | C81: =AVERAGE([7]ScenarioRun_AllOutputData!$AP$2122:$AT$2122) -> 0.5786023266 | D81: =AVERAGE([7]ScenarioRun_AllOutputData!$AP$2127:$AT$2127) -> 0.117582507 | E81: =AVERAGE([7]ScenarioRun_AllOutputData!$AP$2128:$AT$2128) -> 0.09683436733
A82: RoRe underperformance (-2%) | B82: =AVERAGE([7]ScenarioRun_AllOutputData!$AP$2295:$AT$2295) -> 1.071541724 | C82: =AVERAGE([7]ScenarioRun_AllOutputData!$AP$2292:$AT$2292) -> 0.6265550091 | D82: =AVERAGE([7]ScenarioRun_AllOutputData!$AP$2297:$AT$2297) -> 0.08110969454 | E82: =AVERAGE([7]ScenarioRun_AllOutputData!$AP$2298:$AT$2298) -> 0.06195116621
A84: Table 7.7. Sensitivity analysis (actual), average values for GD-2
A85: Scenario | B85: AICR | C85: Gearing | D85: FFO/Net Debt | E85: RCF/Net Debt
A86: Ofgem Base case | B86: =AVERAGE([7]ScenarioRun_AllOutputData!$AP$153:$AT$153) -> 1.311958835 | C86: =AVERAGE([7]ScenarioRun_AllOutputData!$AP$150:$AT$150) -> 0.6845280963 | D86: =AVERAGE([7]ScenarioRun_AllOutputData!$AP$155:$AT$155) -> 0.08634989547 | E86: =AVERAGE([7]ScenarioRun_AllOutputData!$AP$156:$AT$156) -> 0.05712944264
A87: High interest rates (+1%) | B87: =AVERAGE([7]ScenarioRun_AllOutputData!$AP$323:$AT$323) -> 1.256838327 | C87: =AVERAGE([7]ScenarioRun_AllOutputData!$AP$320:$AT$320) -> 0.6851850547 | D87: =AVERAGE([7]ScenarioRun_AllOutputData!$AP$325:$AT$325) -> 0.08558066683 | E87: =AVERAGE([7]ScenarioRun_AllOutputData!$AP$326:$AT$326) -> 0.05638732381
A88: Low interest rates (-1%) | B88: =AVERAGE([7]ScenarioRun_AllOutputData!$AP$493:$AT$493) -> 1.379886877 | C88: =AVERAGE([7]ScenarioRun_AllOutputData!$AP$490:$AT$490) -> 0.6842328022 | D88: =AVERAGE([7]ScenarioRun_AllOutputData!$AP$495:$AT$495) -> 0.08682684613 | E88: =AVERAGE([7]ScenarioRun_AllOutputData!$AP$496:$AT$496) -> 0.05759432548
A89: High inflation (+1%) | B89: =AVERAGE([7]ScenarioRun_AllOutputData!$AP$663:$AT$663) -> 1.362808053 | C89: =AVERAGE([7]ScenarioRun_AllOutputData!$AP$660:$AT$660) -> 0.6516196606 | D89: =AVERAGE([7]ScenarioRun_AllOutputData!$AP$665:$AT$665) -> 0.09185667024 | E89: =AVERAGE([7]ScenarioRun_AllOutputData!$AP$666:$AT$666) -> 0.06261855087
A90: Low inflation (-1%) | B90: =AVERAGE([7]ScenarioRun_AllOutputData!$AP$833:$AT$833) -> 1.256414441 | C90: =AVERAGE([7]ScenarioRun_AllOutputData!$AP$830:$AT$830) -> 0.7199460809 | D90: =AVERAGE([7]ScenarioRun_AllOutputData!$AP$835:$AT$835) -> 0.08082213811 | E90: =AVERAGE([7]ScenarioRun_AllOutputData!$AP$836:$AT$836) -> 0.05163309013
A91: High CPIH-RPI divergence (+0.5%) | B91: =AVERAGE([7]ScenarioRun_AllOutputData!$AP$1003:$AT$1003) -> 1.297574639 | C91: =AVERAGE([7]ScenarioRun_AllOutputData!$AP$1000:$AT$1000) -> 0.6948443726 | D91: =AVERAGE([7]ScenarioRun_AllOutputData!$AP$1005:$AT$1005) -> 0.08475548836 | E91: =AVERAGE([7]ScenarioRun_AllOutputData!$AP$1006:$AT$1006) -> 0.05553837596
A92: Low CPIH-RPI divergence (-0.5%) | B92: =AVERAGE([7]ScenarioRun_AllOutputData!$AP$1173:$AT$1173) -> 1.325621065 | C92: =AVERAGE([7]ScenarioRun_AllOutputData!$AP$1170:$AT$1170) -> 0.6745038951 | D92: =AVERAGE([7]ScenarioRun_AllOutputData!$AP$1175:$AT$1175) -> 0.08792817235 | E92: =AVERAGE([7]ScenarioRun_AllOutputData!$AP$1176:$AT$1176) -> 0.0587067326
A93: RPI ILD | B93: =AVERAGE([7]ScenarioRun_AllOutputData!$AP$153:$AT$153) -> 1.311958835 | C93: =AVERAGE([7]ScenarioRun_AllOutputData!$AP$150:$AT$150) -> 0.6845280963 | D93: =AVERAGE([7]ScenarioRun_AllOutputData!$AP$155:$AT$155) -> 0.08634989547 | E93: =AVERAGE([7]ScenarioRun_AllOutputData!$AP$156:$AT$156) -> 0.05712944264
A94: High ILD proportion (+5%) | B94: =AVERAGE([7]ScenarioRun_AllOutputData!$AP$2533:$AT$2533) -> 1.311965545 | C94: =AVERAGE([7]ScenarioRun_AllOutputData!$AP$2530:$AT$2530) -> 0.6845275108 | D94: =AVERAGE([7]ScenarioRun_AllOutputData!$AP$2535:$AT$2535) -> 0.08635017377 | E94: =AVERAGE([7]ScenarioRun_AllOutputData!$AP$2536:$AT$2536) -> 0.05712969595
A95: Low ILD proportion (-5%) | B95: =AVERAGE([7]ScenarioRun_AllOutputData!$AP$2703:$AT$2703) -> 1.311952125 | C95: =AVERAGE([7]ScenarioRun_AllOutputData!$AP$2700:$AT$2700) -> 0.6845286818 | D95: =AVERAGE([7]ScenarioRun_AllOutputData!$AP$2705:$AT$2705) -> 0.08634961716 | E95: =AVERAGE([7]ScenarioRun_AllOutputData!$AP$2706:$AT$2706) -> 0.05712918933
A96: Totex underperformance (-10%) | B96: =AVERAGE([7]ScenarioRun_AllOutputData!$AP$1853:$AT$1853) -> 1.231946695 | C96: =AVERAGE([7]ScenarioRun_AllOutputData!$AP$1850:$AT$1850) -> 0.7008337381 | D96: =AVERAGE([7]ScenarioRun_AllOutputData!$AP$1855:$AT$1855) -> 0.08134451028 | E96: =AVERAGE([7]ScenarioRun_AllOutputData!$AP$1856:$AT$1856) -> 0.05316529907
A97: Totex outperformance (+10%) | B97: =AVERAGE([7]ScenarioRun_AllOutputData!$AP$1683:$AT$1683) -> 1.390256404 | C97: =AVERAGE([7]ScenarioRun_AllOutputData!$AP$1680:$AT$1680) -> 0.6678053951 | D97: =AVERAGE([7]ScenarioRun_AllOutputData!$AP$1685:$AT$1685) -> 0.09165270217 | E97: =AVERAGE([7]ScenarioRun_AllOutputData!$AP$1686:$AT$1686) -> 0.06130263898
A98: Zero RoRe outperformance | B98: =AVERAGE([7]ScenarioRun_AllOutputData!$AP$2023:$AT$2023) -> 1.252511585 | C98: =AVERAGE([7]ScenarioRun_AllOutputData!$AP$2020:$AT$2020) -> 0.6873961083 | D98: =AVERAGE([7]ScenarioRun_AllOutputData!$AP$2025:$AT$2025) -> 0.08408779951 | E98: =AVERAGE([7]ScenarioRun_AllOutputData!$AP$2026:$AT$2026) -> 0.05498715234
A99: RoRe outperformance (+2%) | B99: =AVERAGE([7]ScenarioRun_AllOutputData!$AP$2193:$AT$2193) -> 1.548787688 | C99: =AVERAGE([7]ScenarioRun_AllOutputData!$AP$2190:$AT$2190) -> 0.6730882689 | D99: =AVERAGE([7]ScenarioRun_AllOutputData!$AP$2195:$AT$2195) -> 0.09564121691 | E99: =AVERAGE([7]ScenarioRun_AllOutputData!$AP$2196:$AT$2196) -> 0.06592640471
A100: RoRe underperformance (-2%) | B100: =AVERAGE([7]ScenarioRun_AllOutputData!$AP$2363:$AT$2363) -> 1.073446571 | C100: =AVERAGE([7]ScenarioRun_AllOutputData!$AP$2360:$AT$2360) -> 0.6960485028 | D100: =AVERAGE([7]ScenarioRun_AllOutputData!$AP$2365:$AT$2365) -> 0.07743050519 | E100: =AVERAGE([7]ScenarioRun_AllOutputData!$AP$2366:$AT$2366) -> 0.04868185747

Sheet Scenario results (Ofgem)
A1: Scenario | B1: AICR | C1: Gearing | D1: FFO/Net Debt | E1: RCF/Net Debt | F1: Moodys' implied rating | H1: AICR | I1: Gearing | J1: FFO/Net Debt | K1: RCF/Net Debt | L1: Moodys' implied rating
A2: Baa1 Target | B2: ='Rating (Ofgem-notional)'!$C$77 -> 1.4 | C2: ='Rating (Ofgem-notional)'!$H$78 -> 0.75 | D2: ='Rating (Ofgem-notional)'!$D$77 -> 0.11 | E2: ='Rating (Ofgem-notional)'!$E$77 -> 0.07 | F2: ='Rating (Ofgem-notional)'!$H$13 -> 8.49 | H2: ='Rating (Ofgem-notional)'!$C$77 -> 1.4 | I2: ='Rating (Ofgem-notional)'!$H$78 -> 0.75 | J2: ='Rating (Ofgem-notional)'!$D$77 -> 0.11 | K2: ='Rating (Ofgem-notional)'!$E$77 -> 0.07 | L2: ='Rating (Ofgem-notional)'!$H$13 -> 8.49
A3: Baseline | B3: 1.3 | C3: 0.7 | D3: 0.09 | E3: 0.05 | F3: ='Rating (Ofgem-notional)'!$H$14 -> 9.49 | H3: 1.3 | I3: 0.7 | J3: 0.09 | K3: 0.05 | L3: ='Rating (Ofgem-notional)'!$H$14 -> 9.49
A4: Active selection
A5: RoRe underperformance (-2%) | B5: =INDEX(Ofgem!B$68:B$82,MATCH(ActiveScenario,Ofgem!$A$68:$A$82,0)) -> 1.071541724 | C5: =INDEX(Ofgem!C$68:C$82,MATCH(ActiveScenario,Ofgem!$A$68:$A$82,0)) -> 0.6265550091 | D5: =INDEX(Ofgem!D$68:D$82,MATCH(ActiveScenario,Ofgem!$A$68:$A$82,0)) -> 0.08110969454 | E5: =INDEX(Ofgem!E$68:E$82,MATCH(ActiveScenario,Ofgem!$A$68:$A$82,0)) -> 0.06195116621 | F5: ='Rating (Ofgem-notional)'!$N$63 -> Baa3 | G5: ='Rating (Ofgem-notional)'!$N$48 -> 9.60251046 | H5: =INDEX(Ofgem!B$86:B$100,MATCH(ActiveScenario,Ofgem!$A$68:$A$82,0)) -> 1.073446571 | I5: =INDEX(Ofgem!C$86:C$100,MATCH(ActiveScenario,Ofgem!$A$68:$A$82,0)) -> 0.6960485028 | J5: =INDEX(Ofgem!D$86:D$100,MATCH(ActiveScenario,Ofgem!$A$68:$A$82,0)) -> 0.07743050519 | K5: =INDEX(Ofgem!E$86:E$100,MATCH(ActiveScenario,Ofgem!$A$68:$A$82,0)) -> 0.04868185747 | L5: ='Rating (Ofgem-actual)'!N50 -> Baa3 | M5: ='Rating (Ofgem-actual)'!N48 -> 9.60251046
B6: Notional Financial structure | H6: Actual Financial Structure
A7: Ofgem Base case | B7: 1.49586006 | C7: 0.6025786679 | D7: 0.09856883636 | E7: 0.07865433239 | F7: Baa1 | G7: 8.052319842 | H7: 1.311958835 | I7: 0.6845280963 | J7: 0.08634989547 | K7: 0.05712944264 | L7: Baa2 | M7: 8.784753363
A8: High interest rates (+1%) | B8: 1.516304237 | C8: 0.5995943633 | D8: 0.1008466932 | E8: 0.08083292096 | F8: Baa1 | G8: 7.73747495 | H8: 1.256838327 | I8: 0.6851850547 | J8: 0.08558066683 | K8: 0.05638732381 | L8: Baa2 | M8: 8.784753363
A9: Low interest rates (-1%) | B9: 1.474875465 | C9: 0.6055385952 | D9: 0.09633897532 | E9: 0.07652174437 | F9: Baa1 | G9: 8.052319842 | H9: 1.379886877 | I9: 0.6842328022 | J9: 0.08682684613 | K9: 0.05759432548 | L9: Baa2 | M9: 8.784753363
A10: High inflation (+1%) | B10: 1.530840337 | C10: 0.5895158256 | D10: 0.09927535673 | E10: 0.07891716392 | F10: Baa1 | G10: 7.73747495 | H10: 1.362808053 | I10: 0.6516196606 | J10: 0.09185667024 | K10: 0.06261855087 | L10: Baa2 | M10: 8.784753363
A11: Low inflation (-1%) | B11: 1.461440332 | C11: 0.6161641264 | D11: 0.09791971939 | E11: 0.07844226611 | F11: Baa1 | G11: 8.052319842 | H11: 1.256414441 | I11: 0.7199460809 | J11: 0.08082213811 | K11: 0.05163309013 | L11: Baa2 | M11: 8.784753363
A12: High CPIH-RPI divergence (+0.5%) | B12: 1.478580393 | C12: 0.6093043446 | D12: 0.09823711617 | E12: 0.07854196452 | F12: Baa1 | G12: 8.052319842 | H12: 1.297574639 | I12: 0.6948443726 | J12: 0.08475548836 | K12: 0.05553837596 | L12: Baa2 | M12: 8.784753363
A13: Low CPIH-RPI divergence (-0.5%) | B13: 1.513279865 | C13: 0.5959836176 | D13: 0.09891490742 | E13: 0.07877939158 | F13: Baa1 | G13: 7.73747495 | H13: 1.325621065 | I13: 0.6745038951 | J13: 0.08792817235 | K13: 0.0587067326 | L13: Baa2 | M13: 8.784753363
A14: RPI ILD | B14: 1.620990376 | C14: 0.6025458079 | D14: 0.09858770682 | E14: 0.07867211674 | F14: Baa1 | G14: 8.052319842 | H14: 1.311958835 | I14: 0.6845280963 | J14: 0.08634989547 | K14: 0.05712944264 | L14: Baa2 | M14: 8.784753363
A15: High ILD proportion (+5%) | B15: 1.540322132 | C15: 0.6025750933 | D15: 0.09857084624 | E15: 0.07865622413 | F15: Baa1 | G15: 8.052319842 | H15: 1.311965545 | I15: 0.6845275108 | J15: 0.08635017377 | K15: 0.05712969595 | L15: Baa2 | M15: 8.784753363
A16: Low ILD proportion (-5%) | B16: 1.453893171 | C16: 0.6025822424 | D16: 0.0985668265 | E16: 0.07865244067 | F16: Baa1 | G16: 8.052319842 | H16: 1.311952125 | I16: 0.6845286818 | J16: 0.08634961716 | K16: 0.05712918933 | L16: Baa2 | M16: 8.784753363
A17: Totex underperformance (-10%) | B17: 1.406400285 | C17: 0.618536139 | D17: 0.09280778878 | E17: 0.07340458172 | F17: Baa1 | G17: 8.052319842 | H17: 1.231946695 | I17: 0.7008337381 | J17: 0.08134451028 | K17: 0.05316529907 | L17: Baa2 | M17: 8.784753363
A18: Totex outperformance (+10%) | B18: 1.592232819 | C18: 0.5861103299 | D18: 0.1048751307 | E18: 0.08439750655 | F18: Baa1 | G18: 7.73747495 | H18: 1.390256404 | I18: 0.6678053951 | J18: 0.09165270217 | K18: 0.06130263898 | L18: Baa2 | M18: 8.784753363
A19: Zero RoRe outperformance | B19: 1.387075142 | C19: 0.6085727532 | D19: 0.09406746209 | E19: 0.07434874249 | F19: Baa2 | G19: 8.555966698 | H19: 1.252511585 | I19: 0.6873961083 | J19: 0.08408779951 | K19: 0.05498715234 | L19: Baa2 | M19: 8.784753363
A20: RoRe outperformance (+2%) | B20: 1.950726759 | C20: 0.5786023266 | D20: 0.117582507 | E20: 0.09683436733 | F20: A3 | G20: 6.962760131 | H20: 1.548787688 | I20: 0.6730882689 | J20: 0.09564121691 | K20: 0.06592640471 | L20: Baa1 | M20: 8.312320917
A21: RoRe underperformance (-2%) | B21: 1.071541724 | C21: 0.6265550091 | D21: 0.08110969454 | E21: 0.06195116621 | F21: Baa3 | G21: 9.60251046 | H21: 1.073446571 | I21: 0.6960485028 | J21: 0.07743050519 | K21: 0.04868185747 | L21: Baa3 | M21: 9.60251046

Sheet Rating (Ofgem-notional) (hidden)
A1: Moody's rating calculator
B3: Numerical score | E3: Penalty Weights | H3: Grid Rating
B5: Caa | C5: 18 | E5: Caa | F5: 5 | H5: 0 | I5: Aaa
B6: B | C6: 15 | E6: B | F6: 3 | H6: 1.49 | I6: Aa1
B7: Ba | C7: 12 | E7: Ba | F7: 2 | H7: 2.49 | I7: Aa2
B8: Baa | C8: 9 | E8: Baa | F8: 1.15 | H8: 3.49 | I8: Aa3
B9: A | C9: 6 | E9: Aaa | F9: 1 | H9: 4.49 | I9: A1
B10: Aa | C10: 3 | E10: Aa | F10: 1 | H10: 5.49 | I10: A2
B11: Aaa | C11: 1 | E11: A | F11: 1 | H11: 6.49 | I11: A3
H12: 7.49 | I12: Baa1
H13: 8.49 | I13: Baa2
H14: 9.49 | I14: Baa3
H15: 10.49 | I15: Ba1
H16: 11.49 | I16: Ba2
H17: 12.49 | I17: Ba3
H18: 13.49 | I18: B1
H19: 14.49 | I19: B2
H20: 15.49 | I20: B3
H21: 16.49 | I21: Caa1
H22: 17.49 | I22: Caa2
H23: 18.49 | I23: Caa3
A26: Criteria
K30: Average rating | L30: Penalty score | M30: Numerical score | N30: Total score
H31: Weight
B32: Regulatory Environment & Ownership Model | H32: =SUM(H33:H36) -> 0.4
B33: Stability & Predictability of Regulatory Regime | H33: 0.15 | K33: Aaa | L33: =IF(K33=0,0,INDEX($F$5:$F$11,MATCH(K33,$E$5:$E$11,0))) -> 1 | M33: =IF(K33=0,0,INDEX($C$5:$C$11,MATCH(K33,$B$5:$B$11,0))) -> 1 | N33: =$H33*L33/SUMPRODUCT($H$32:$H$46,L$32:L$46)*M33 -> 0.10041841
B34: Asset Ownership Model | H34: 0.05 | K34: Aa | L34: =IF(K34=0,0,INDEX($F$5:$F$11,MATCH(K34,$E$5:$E$11,0))) -> 1 | M34: =IF(K34=0,0,INDEX($C$5:$C$11,MATCH(K34,$B$5:$B$11,0))) -> 3 | N34: =$H34*L34/SUMPRODUCT($H$32:$H$46,L$32:L$46)*M34 -> 0.10041841
B35: Cost & Investment Recovery | H35: 0.15 | K35: A | L35: =IF(K35=0,0,INDEX($F$5:$F$11,MATCH(K35,$E$5:$E$11,0))) -> 1 | M35: =IF(K35=0,0,INDEX($C$5:$C$11,MATCH(K35,$B$5:$B$11,0))) -> 6 | N35: =$H35*L35/SUMPRODUCT($H$32:$H$46,L$32:L$46)*M35 -> 0.6025104603
B36: Revenue Risk | H36: 0.05 | K36: Aa | L36: =IF(K36=0,0,INDEX($F$5:$F$11,MATCH(K36,$E$5:$E$11,0))) -> 1 | M36: =IF(K36=0,0,INDEX($C$5:$C$11,MATCH(K36,$B$5:$B$11,0))) -> 3 | N36: =$H36*L36/SUMPRODUCT($H$32:$H$46,L$32:L$46)*M36 -> 0.10041841
B38: Scale & Complexity of Capital Program | H38: 0.1 | K38: A | L38: =IF(K38=0,0,INDEX($F$5:$F$11,MATCH(K38,$E$5:$E$11,0))) -> 1 | M38: =IF(K38=0,0,INDEX($C$5:$C$11,MATCH(K38,$B$5:$B$11,0))) -> 6 | N38: =$H38*L38/SUMPRODUCT($H$32:$H$46,L$32:L$46)*M38 -> 0.4016736402
B40: Financial Policy | H40: 0.1 | K40: Ba | L40: =IF(K40=0,0,INDEX($F$5:$F$11,MATCH(K40,$E$5:$E$11,0))) -> 2 | M40: =IF(K40=0,0,INDEX($C$5:$C$11,MATCH(K40,$B$5:$B$11,0))) -> 12 | N40: =$H40*L40/SUMPRODUCT($H$32:$H$46,L$32:L$46)*M40 -> 1.606694561
B42: Leverage & Coverage | H42: =SUM(H43:H46) -> 0.4
B43: AICR | H43: 0.1 | K43: =D88 -> B | L43: =IF(K43=0,0,INDEX($F$5:$F$11,MATCH(K43,$E$5:$E$11,0))) -> 3 | M43: =IF(K43=0,0,INDEX($C$5:$C$11,MATCH(K43,$B$5:$B$11,0))) -> 15 | N43: =$H43*L43/SUMPRODUCT($H$32:$H$46,L$32:L$46)*M43 -> 3.012552301
B44: Net Debt / Regulatory Asset Value | H44: 0.125 | K44: =D91 -> Baa | L44: =IF(K44=0,0,INDEX($F$5:$F$11,MATCH(K44,$E$5:$E$11,0))) -> 1.15 | M44: =IF(K44=0,0,INDEX($C$5:$C$11,MATCH(K44,$B$5:$B$11,0))) -> 9 | N44: =$H44*L44/SUMPRODUCT($H$32:$H$46,L$32:L$46)*M44 -> 0.8661087866
B45: FFO / Net Debt | H45: 0.125 | K45: =D94 -> Ba | L45: =IF(K45=0,0,INDEX($F$5:$F$11,MATCH(K45,$E$5:$E$11,0))) -> 2 | M45: =IF(K45=0,0,INDEX($C$5:$C$11,MATCH(K45,$B$5:$B$11,0))) -> 12 | N45: =$H45*L45/SUMPRODUCT($H$32:$H$46,L$32:L$46)*M45 -> 2.008368201
B46: RCF / Net Debt | H46: 0.05 | K46: =D97 -> Ba | L46: =IF(K46=0,0,INDEX($F$5:$F$11,MATCH(K46,$E$5:$E$11,0))) -> 2 | M46: =IF(K46=0,0,INDEX($C$5:$C$11,MATCH(K46,$B$5:$B$11,0))) -> 12 | N46: =$H46*L46/SUMPRODUCT($H$32:$H$46,L$32:L$46)*M46 -> 0.8033472803
B48: Total | H48: =H32+H38+H40+H42 -> 1 | N48: =SUM(N33:N46) -> 9.60251046
B50: Overall rating | N50: =VLOOKUP(N48,$H$5:$I$23,2) -> Baa3
A55: Notching Adjustments
B57: Structural Considerations and Sources of Rating Uplift from Creditor Protection
B61: Total score after adjustments | N61: =N48+N57 -> 9.60251046
B63: Overall adjusted rating | N63: =VLOOKUP(N61,$H$5:$I$23,2) -> Baa3
A68: Factor 4: Leverage and Coverage
A70: Moody's Ratio thresholds
C72: (Ratio greater than)
C73: AICR | D73: FFO / Net Debt | E73: RCF / Net Debt | H73: Net Debt / RAV
B74: Caa | C74: 0 | E74: -0.1 | G74: Aaa | H74: 0
B75: B | C75: 0.9 | D75: 0 | E75: -0.04 | G75: Aa | H75: 0.3
B76: Ba | C76: 1.1 | D76: 0.05 | E76: 0.01 | G76: A | H76: 0.45
B77: Baa | C77: 1.4 | D77: 0.11 | E77: 0.07 | G77: Baa | H77: 0.6
B78: A | C78: 2 | D78: 0.18 | E78: 0.14 | G78: Ba | H78: 0.75
B79: Aa | C79: 3.5 | D79: 0.26 | E79: 0.21 | G79: B | H79: 0.9
B80: Aaa | C80: 5.5 | D80: 0.35 | E80: 0.3 | G80: Caa | H80: 1
A83: Ratio inputs
D85: Average
B87: AICR | D87: ='Scenario results (Ofgem)'!B5 -> 1.071541724
B88: Category rating | D88: =IFERROR(INDEX($B$74:$B$80,MATCH(D87,$C$74:$C$80,1)),"") -> B
B90: Net Debt / Regulatory Asset Value | D90: ='Scenario results (Ofgem)'!C5 -> 0.6265550091
B91: Category rating | D91: =IFERROR(INDEX($G$74:$G$80,MATCH(D90,$H$74:$H$80,1)),"") -> Baa
B93: FFO / Net Debt | D93: ='Scenario results (Ofgem)'!D5 -> 0.08110969454
B94: Category rating | D94: =IFERROR(INDEX($B$74:$B$80,MATCH(D93,$D$74:$D$80,1)),"") -> Ba
B96: RCF / Net Debt | D96: ='Scenario results (Ofgem)'!E5 -> 0.06195116621
B97: Category rating | D97: =IFERROR(INDEX($B$74:$B$80,MATCH(D96,$E$74:$E$80,1)),"") -> Ba

Sheet Rating (Ofgem-actual) (hidden)
A1: Moody's rating calculator
B3: Numerical score | E3: Penalty Weights | H3: Grid Rating
B5: Caa | C5: 18 | E5: Caa | F5: 5 | H5: 0 | I5: Aaa
B6: B | C6: 15 | E6: B | F6: 3 | H6: 1.49 | I6: Aa1
B7: Ba | C7: 12 | E7: Ba | F7: 2 | H7: 2.49 | I7: Aa2
B8: Baa | C8: 9 | E8: Baa | F8: 1.15 | H8: 3.49 | I8: Aa3
B9: A | C9: 6 | E9: Aaa | F9: 1 | H9: 4.49 | I9: A1
B10: Aa | C10: 3 | E10: Aa | F10: 1 | H10: 5.49 | I10: A2
B11: Aaa | C11: 1 | E11: A | F11: 1 | H11: 6.49 | I11: A3
H12: 7.49 | I12: Baa1
H13: 8.49 | I13: Baa2
H14: 9.49 | I14: Baa3
H15: 10.49 | I15: Ba1
H16: 11.49 | I16: Ba2
H17: 12.49 | I17: Ba3
H18: 13.49 | I18: B1
H19: 14.49 | I19: B2
H20: 15.49 | I20: B3
H21: 16.49 | I21: Caa1
H22: 17.49 | I22: Caa2
H23: 18.49 | I23: Caa3
A26: Criteria
K30: Average rating | L30: Penalty score | M30: Numerical score | N30: Total score
H31: Weight
B32: Regulatory Environment & Ownership Model | H32: =SUM(H33:H36) -> 0.4
B33: Stability & Predictability of Regulatory Regime | H33: 0.15 | K33: Aaa | L33: =IF(K33=0,0,INDEX($F$5:$F$11,MATCH(K33,$E$5:$E$11,0))) -> 1 | M33: =IF(K33=0,0,INDEX($C$5:$C$11,MATCH(K33,$B$5:$B$11,0))) -> 1 | N33: =$H33*L33/SUMPRODUCT($H$32:$H$46,L$32:L$46)*M33 -> 0.10041841
B34: Asset Ownership Model | H34: 0.05 | K34: Aa | L34: =IF(K34=0,0,INDEX($F$5:$F$11,MATCH(K34,$E$5:$E$11,0))) -> 1 | M34: =IF(K34=0,0,INDEX($C$5:$C$11,MATCH(K34,$B$5:$B$11,0))) -> 3 | N34: =$H34*L34/SUMPRODUCT($H$32:$H$46,L$32:L$46)*M34 -> 0.10041841
B35: Cost & Investment Recovery | H35: 0.15 | K35: A | L35: =IF(K35=0,0,INDEX($F$5:$F$11,MATCH(K35,$E$5:$E$11,0))) -> 1 | M35: =IF(K35=0,0,INDEX($C$5:$C$11,MATCH(K35,$B$5:$B$11,0))) -> 6 | N35: =$H35*L35/SUMPRODUCT($H$32:$H$46,L$32:L$46)*M35 -> 0.6025104603
B36: Revenue Risk | H36: 0.05 | K36: Aa | L36: =IF(K36=0,0,INDEX($F$5:$F$11,MATCH(K36,$E$5:$E$11,0))) -> 1 | M36: =IF(K36=0,0,INDEX($C$5:$C$11,MATCH(K36,$B$5:$B$11,0))) -> 3 | N36: =$H36*L36/SUMPRODUCT($H$32:$H$46,L$32:L$46)*M36 -> 0.10041841
B38: Scale & Complexity of Capital Program | H38: 0.1 | K38: A | L38: =IF(K38=0,0,INDEX($F$5:$F$11,MATCH(K38,$E$5:$E$11,0))) -> 1 | M38: =IF(K38=0,0,INDEX($C$5:$C$11,MATCH(K38,$B$5:$B$11,0))) -> 6 | N38: =$H38*L38/SUMPRODUCT($H$32:$H$46,L$32:L$46)*M38 -> 0.4016736402
B40: Financial Policy | H40: 0.1 | K40: Ba | L40: =IF(K40=0,0,INDEX($F$5:$F$11,MATCH(K40,$E$5:$E$11,0))) -> 2 | M40: =IF(K40=0,0,INDEX($C$5:$C$11,MATCH(K40,$B$5:$B$11,0))) -> 12 | N40: =$H40*L40/SUMPRODUCT($H$32:$H$46,L$32:L$46)*M40 -> 1.606694561
B42: Leverage & Coverage | H42: =SUM(H43:H46) -> 0.4
B43: AICR | H43: 0.1 | K43: =D88 -> B | L43: =IF(K43=0,0,INDEX($F$5:$F$11,MATCH(K43,$E$5:$E$11,0))) -> 3 | M43: =IF(K43=0,0,INDEX($C$5:$C$11,MATCH(K43,$B$5:$B$11,0))) -> 15 | N43: =$H43*L43/SUMPRODUCT($H$32:$H$46,L$32:L$46)*M43 -> 3.012552301
B44: Net Debt / Regulatory Asset Value | H44: 0.125 | K44: =D91 -> Baa | L44: =IF(K44=0,0,INDEX($F$5:$F$11,MATCH(K44,$E$5:$E$11,0))) -> 1.15 | M44: =IF(K44=0,0,INDEX($C$5:$C$11,MATCH(K44,$B$5:$B$11,0))) -> 9 | N44: =$H44*L44/SUMPRODUCT($H$32:$H$46,L$32:L$46)*M44 -> 0.8661087866
B45: FFO / Net Debt | H45: 0.125 | K45: =D94 -> Ba | L45: =IF(K45=0,0,INDEX($F$5:$F$11,MATCH(K45,$E$5:$E$11,0))) -> 2 | M45: =IF(K45=0,0,INDEX($C$5:$C$11,MATCH(K45,$B$5:$B$11,0))) -> 12 | N45: =$H45*L45/SUMPRODUCT($H$32:$H$46,L$32:L$46)*M45 -> 2.008368201
B46: RCF / Net Debt | H46: 0.05 | K46: =D97 -> Ba | L46: =IF(K46=0,0,INDEX($F$5:$F$11,MATCH(K46,$E$5:$E$11,0))) -> 2 | M46: =IF(K46=0,0,INDEX($C$5:$C$11,MATCH(K46,$B$5:$B$11,0))) -> 12 | N46: =$H46*L46/SUMPRODUCT($H$32:$H$46,L$32:L$46)*M46 -> 0.8033472803
B48: Total | H48: =H32+H38+H40+H42 -> 1 | N48: =SUM(N33:N46) -> 9.60251046
B50: Overall rating | N50: =VLOOKUP(N48,$H$5:$I$23,2) -> Baa3
A55: Notching Adjustments
B57: Structural Considerations and Sources of Rating Uplift from Creditor Protection
B61: Total score after adjustments | N61: =N48+N57 -> 9.60251046
B63: Overall adjusted rating | N63: =VLOOKUP(N61,$H$5:$I$23,2) -> Baa3
A68: Factor 4: Leverage and Coverage
A70: Moody's Ratio thresholds
C72: (Ratio greater than)
C73: AICR | D73: FFO / Net Debt | E73: RCF / Net Debt | H73: Net Debt / RAV
B74: Caa | C74: 0 | E74: -0.1 | G74: Aaa | H74: 0
B75: B | C75: 0.9 | D75: 0 | E75: -0.04 | G75: Aa | H75: 0.3
B76: Ba | C76: 1.1 | D76: 0.05 | E76: 0.01 | G76: A | H76: 0.45
B77: Baa | C77: 1.4 | D77: 0.11 | E77: 0.07 | G77: Baa | H77: 0.6
B78: A | C78: 2 | D78: 0.18 | E78: 0.14 | G78: Ba | H78: 0.75
B79: Aa | C79: 3.5 | D79: 0.26 | E79: 0.21 | G79: B | H79: 0.9
B80: Aaa | C80: 5.5 | D80: 0.35 | E80: 0.3 | G80: Caa | H80: 1
A83: Ratio inputs
D85: Average
B87: AICR | D87: ='Scenario results (Ofgem)'!H5 -> 1.073446571
B88: Category rating | D88: =IFERROR(INDEX($B$74:$B$80,MATCH(D87,$C$74:$C$80,1)),"") -> B
B90: Net Debt / Regulatory Asset Value | D90: ='Scenario results (Ofgem)'!I5 -> 0.6960485028
B91: Category rating | D91: =IFERROR(INDEX($G$74:$G$80,MATCH(D90,$H$74:$H$80,1)),"") -> Baa
B93: FFO / Net Debt | D93: ='Scenario results (Ofgem)'!J5 -> 0.07743050519
B94: Category rating | D94: =IFERROR(INDEX($B$74:$B$80,MATCH(D93,$D$74:$D$80,1)),"") -> Ba
B96: RCF / Net Debt | D96: ='Scenario results (Ofgem)'!K5 -> 0.04868185747
B97: Category rating | D97: =IFERROR(INDEX($B$74:$B$80,MATCH(D96,$E$74:$E$80,1)),"") -> Ba

Sheet NGN
A1: Parameter | B1: AICR | C1: Gearing | D1: FFO/Net Debt | E1: RCF/Net Debt | F1: FFO Interest Cover
A2: Baa1 Target | B2: ='Rating (Ofgem-notional)'!$C$77 -> 1.4 | C2: ='Rating (Ofgem-notional)'!$H$78 -> 0.75 | D2: ='Rating (Ofgem-notional)'!$D$77 -> 0.11 | E2: ='Rating (Ofgem-notional)'!$E$77 -> 0.07 | F2: 2.5
A3: Baseline | B3: 1.3 | C3: 0.7 | D3: 0.09 | E3: 0.05
A4: Real to nominal prices conversion factor | B4: =[7]Input!AP92 -> 1.079223444 | C4: =[7]Input!AQ92 -> 1.100804588 | D4: =[7]Input!AR92 -> 1.122817289 | E4: =[7]Input!AS92 -> 1.145270176 | F4: =[7]Input!AT92 -> 1.168172052
A6: Table A33.5. Financial Parameters (notional): NGN's proposals | G6: £m, 18/19 prices
A7: Parameter | B7: 2021/22 | C7: 2022/23 | D7: 2023/24 | E7: 2024/25 | F7: 2025/26 | G7: GD-2 Average
A8: Closing RAV | B8: =[8]ScenarioRun_AllOutputData!AP101/B4 -> 2277.985136 | C8: =[8]ScenarioRun_AllOutputData!AQ101/C4 -> 2326.676242 | D8: =[8]ScenarioRun_AllOutputData!AR101/D4 -> 2371.606904 | E8: =[8]ScenarioRun_AllOutputData!AS101/E4 -> 2407.678559 | F8: =[8]ScenarioRun_AllOutputData!AT101/F4 -> 2433.654277 | G8: =AVERAGE(B8:F8) -> 2363.520223
A9: Fast Money, % | B9: =[8]TIM!AP144/([8]TIM!AP144+[8]TIM!AP146) -> 0.3524244512 | C9: =[8]TIM!AQ144/([8]TIM!AQ144+[8]TIM!AQ146) -> 0.3390984116 | D9: =[8]TIM!AR144/([8]TIM!AR144+[8]TIM!AR146) -> 0.3370494412 | E9: =[8]TIM!AS144/([8]TIM!AS144+[8]TIM!AS146) -> 0.3393271912 | F9: =[8]TIM!AT144/([8]TIM!AT144+[8]TIM!AT146) -> 0.3504758783 | G9: =AVERAGE(B9:F9) -> 0.3436750747
A10: Slow Money, % | B10: =[8]TIM!AP146/([8]TIM!AP144+[8]TIM!AP146) -> 0.6475755488 | C10: =[8]TIM!AQ146/([8]TIM!AQ144+[8]TIM!AQ146) -> 0.6609015884 | D10: =[8]TIM!AR146/([8]TIM!AR144+[8]TIM!AR146) -> 0.6629505588 | E10: =[8]TIM!AS146/([8]TIM!AS144+[8]TIM!AS146) -> 0.6606728088 | F10: =[8]TIM!AT146/([8]TIM!AT144+[8]TIM!AT146) -> 0.6495241217 | G10: 0.6563249253
A11: Fast pot expenditure | B11: =[8]ScenarioRun_AllOutputData!AP102/B4 -> 87.82689644 | C11: =[8]ScenarioRun_AllOutputData!AQ102/C4 -> 86.56301282 | D11: =[8]ScenarioRun_AllOutputData!AR102/D4 -> 85.81641898 | E11: =[8]ScenarioRun_AllOutputData!AS102/E4 -> 84.19843206 | F11: =[8]ScenarioRun_AllOutputData!AT102/F4 -> 84.90971894 | G11: 85.86289585
A12: Non-controllable opex | B12: =[8]ScenarioRun_AllOutputData!AP103/B4 -> 95.2060747 | C12: =[8]ScenarioRun_AllOutputData!AQ103/C4 -> 95.07182142 | D12: =[8]ScenarioRun_AllOutputData!AR103/D4 -> 92.8992488 | E12: =[8]ScenarioRun_AllOutputData!AS103/E4 -> 91.38408185 | F12: =[8]ScenarioRun_AllOutputData!AT103/F4 -> 89.38540756 | G12: 92.78932687
A13: RAV depreciation | B13: =[8]ScenarioRun_AllOutputData!AP104/B4 -> 115.917695 | C13: =[8]ScenarioRun_AllOutputData!AQ104/C4 -> 119.8137846 | D13: =[8]ScenarioRun_AllOutputData!AR104/D4 -> 123.8636924 | E13: =[8]ScenarioRun_AllOutputData!AS104/E4 -> 127.763379 | F13: =[8]ScenarioRun_AllOutputData!AT104/F4 -> 131.2843566 | G13: 123.7285815
A14: Return | B14: =[8]ScenarioRun_AllOutputData!AP105/B4 -> 77.94315936 | C14: =[8]ScenarioRun_AllOutputData!AQ105/C4 -> 78.499096 | D14: =[8]ScenarioRun_AllOutputData!AR105/D4 -> 79.25255213 | E14: =[8]ScenarioRun_AllOutputData!AS105/E4 -> 79.96853 | F14: =[8]ScenarioRun_AllOutputData!AT105/F4 -> 80.52911937 | G14: 79.23849137
A15: Equity issuance cost | B15: =[8]ScenarioRun_AllOutputData!AP106/B4 -> 5.47248465 | C15: =[8]ScenarioRun_AllOutputData!AQ106/C4 -> 0 | D15: =[8]ScenarioRun_AllOutputData!AR106/D4 -> 0 | E15: =[8]ScenarioRun_AllOutputData!AS106/E4 -> 0 | F15: =[8]ScenarioRun_AllOutputData!AT106/F4 -> 0 | G15: 1.09449693
A16: Additional income | B16: =[8]ScenarioRun_AllOutputData!AP107/B4 -> 0 | C16: =[8]ScenarioRun_AllOutputData!AQ107/C4 -> 0 | D16: =[8]ScenarioRun_AllOutputData!AR107/D4 -> 0 | E16: =[8]ScenarioRun_AllOutputData!AS107/E4 -> 0 | F16: =[8]ScenarioRun_AllOutputData!AT107/F4 -> 0 | G16: 0
A17: Core DARTs | B17: =[8]ScenarioRun_AllOutputData!AP108/B4 -> 4.2 | C17: =[8]ScenarioRun_AllOutputData!AQ108/C4 -> 4.2 | D17: =[8]ScenarioRun_AllOutputData!AR108/D4 -> 4.2 | E17: =[8]ScenarioRun_AllOutputData!AS108/E4 -> 4.2 | F17: =[8]ScenarioRun_AllOutputData!AT108/F4 -> 4.2 | G17: 4.2
A18: Recalculated base revenue (except tax allowance) | B18: =[8]ScenarioRun_AllOutputData!AP109/B4 -> 386.5663101 | C18: =[8]ScenarioRun_AllOutputData!AQ109/C4 -> 384.1477148 | D18: =[8]ScenarioRun_AllOutputData!AR109/D4 -> 386.0319123 | E18: =[8]ScenarioRun_AllOutputData!AS109/E4 -> 387.5144229 | F18: =[8]ScenarioRun_AllOutputData!AT109/F4 -> 390.3086025 | G18: 386.9137925
A19: Tax allowance | B19: =[8]ScenarioRun_AllOutputData!AP110/B4 -> 18.31027793 | C19: =[8]ScenarioRun_AllOutputData!AQ110/C4 -> 17.37292957 | D19: =[8]ScenarioRun_AllOutputData!AR110/D4 -> 17.71433001 | E19: =[8]ScenarioRun_AllOutputData!AS110/E4 -> 18.1000843 | F19: =[8]ScenarioRun_AllOutputData!AT110/F4 -> 18.54835257 | G19: 18.00919488
A20: Recalculated base revenue | B20: =[8]ScenarioRun_AllOutputData!AP111/B4 -> 404.8765881 | C20: =[8]ScenarioRun_AllOutputData!AQ111/C4 -> 401.5206444 | D20: =[8]ScenarioRun_AllOutputData!AR111/D4 -> 403.7462424 | E20: =[8]ScenarioRun_AllOutputData!AS111/E4 -> 405.6145072 | F20: =[8]ScenarioRun_AllOutputData!AT111/F4 -> 408.8569551 | G20: 404.9229874
A21: Incentive income | B21: =B22-B20 -> 0 | C21: =C22-C20 -> 0 | D21: 0 | E21: 0 | F21: 0 | G21: 0
A22: Total revenue | B22: =[8]ScenarioRun_AllOutputData!AP112/B4 -> 404.8765881 | C22: =[8]ScenarioRun_AllOutputData!AQ112/C4 -> 401.5206444 | D22: =[8]ScenarioRun_AllOutputData!AR112/D4 -> 403.7462424 | E22: =[8]ScenarioRun_AllOutputData!AS112/E4 -> 405.6145072 | F22: =[8]ScenarioRun_AllOutputData!AT112/F4 -> 408.8569551 | G22: 404.9229874
A23: Costs | B23: =SUM([8]FinancialStatements!AP72:AP77)/B4 -> -192.7054558 | C23: =SUM([8]FinancialStatements!AQ72:AQ77)/C4 -> -185.8348342 | D23: =SUM([8]FinancialStatements!AR72:AR77)/D4 -> -182.9156678 | E23: =SUM([8]FinancialStatements!AS72:AS77)/E4 -> -179.7825139 | F23: =SUM([8]FinancialStatements!AT72:AT77)/F4 -> -178.4951265 | G23: -183.9467196
A24: EBITDA | B24: =SUM(B22:B23) -> 212.1711323 | C24: =SUM(C22:C23) -> 215.6858102 | D24: 220.8305746 | E24: 225.8319933 | F24: 230.3618286 | G24: 220.9762678
A25: Interest | B25: =SUM([8]FinancialStatements!AP87:AP88)/B4 -> -60.34174836 | C25: =SUM([8]FinancialStatements!AQ87:AQ88)/C4 -> -60.70020095 | D25: =SUM([8]FinancialStatements!AR87:AR88)/D4 -> -61.21654733 | E25: =SUM([8]FinancialStatements!AS87:AS88)/E4 -> -61.63525127 | F25: =SUM([8]FinancialStatements!AT87:AT88)/F4 -> -61.7996742 | G25: -61.13868442
A26: Principal inflation accretion | B26: =-[8]FinancialStatements!AP88/B4 -> 6.527758886 | C26: =-[8]FinancialStatements!AQ88/C4 -> 6.73702285 | D26: =-[8]FinancialStatements!AR88/D4 -> 6.906428439 | E26: =-[8]FinancialStatements!AS88/E4 -> 7.042851812 | F26: =-[8]FinancialStatements!AT88/F4 -> 7.13069759 | G26: 6.868951916
A27: Capital expenditure | B27: =[8]FinancialStatements!AP120/B4 -> -161.3808306 | C27: =[8]FinancialStatements!AQ120/C4 -> -168.7110016 | D27: =[8]FinancialStatements!AR120/D4 -> -168.7943547 | E27: =[8]FinancialStatements!AS120/E4 -> -163.9350339 | F27: =[8]FinancialStatements!AT120/F4 -> -157.3600753 | G27: -164.0362592
A28: Tax paid | B28: =[8]FinancialStatements!AP93/B4 -> -18.31027793 | C28: =[8]FinancialStatements!AQ93/C4 -> -17.37292957 | D28: =[8]FinancialStatements!AR93/D4 -> -17.71433001 | E28: =[8]FinancialStatements!AS93/E4 -> -18.1000843 | F28: =[8]FinancialStatements!AT93/F4 -> -18.54835257 | G28: -18.00919488
A29: Operating Cash Flow | B29: =SUM(B24:B28) -> -21.33396577 | C29: =SUM(C24:C28) -> -24.36129911 | D29: =SUM(D24:D28) -> -19.98822901 | E29: =SUM(E24:E28) -> -10.79552435 | F29: =SUM(F24:F28) -> -0.2155759345 | G29: -15.33891883
A30: Disposal proceeds | B30: =[8]FinancialStatements!AP122/B4 -> 0 | C30: =[8]FinancialStatements!AQ122/C4 -> 0.206111128 | D30: =[8]FinancialStatements!AR122/D4 -> 0 | E30: =[8]FinancialStatements!AS122/E4 -> 0.1 | F30: =[8]FinancialStatements!AT122/F4 -> 0.1 | G30: 0.08122222559
A31: Dividend | B31: =[8]FinancialStatements!AP115/B4 -> -31.8917919 | C31: =[8]FinancialStatements!AQ115/C4 -> -32.57346738 | D31: =[8]FinancialStatements!AR115/D4 -> -33.20249665 | E31: =[8]FinancialStatements!AS115/E4 -> -33.70749982 | F31: =[8]FinancialStatements!AT115/F4 -> -34.07115988 | G31: -33.08928313
A32: Net Cash Flow | B32: =SUM(B29:B31) -> -53.22575767 | C32: =SUM(C29:C31) -> -56.72865536 | D32: -53.19072566 | E32: -44.40302417 | F32: -34.18673582 | G32: -48.34697973
A34: Table A33.6 Credit Metrics (notional): NGN's proposals
A35: Parameter | B35: 2021/22 | C35: 2022/23 | D35: 2023/24 | E35: 2024/25 | F35: 2025/26 | G35: GD-2 Average
A36: Adjusted ICR [>1.4x] | B36: =[8]ScenarioRun_AllOutputData!AP85 -> 1.44838099 | C36: =[8]ScenarioRun_AllOutputData!AQ85 -> 1.45467889 | D36: =[8]ScenarioRun_AllOutputData!AR85 -> 1.459259411 | E36: =[8]ScenarioRun_AllOutputData!AS85 -> 1.464829002 | F36: =[8]ScenarioRun_AllOutputData!AT85 -> 1.473031404 | G36: =AVERAGE(B36:F36) -> 1.460035939
A37: Gearing [<75%] | B37: =[8]ScenarioRun_AllOutputData!AP82 -> 0.6027913927 | C37: =[8]ScenarioRun_AllOutputData!AQ82 -> 0.6058836398 | D37: =[8]ScenarioRun_AllOutputData!AR82 -> 0.6080920559 | E37: =[8]ScenarioRun_AllOutputData!AS82 -> 0.6086061212 | F37: =[8]ScenarioRun_AllOutputData!AT82 -> 0.6072833658 | G37: =AVERAGE(B37:F37) -> 0.6065313151
A38: FFO/Net Debt [>9%] | B38: =[8]ScenarioRun_AllOutputData!AP87 -> 0.09723564233 | C38: =[8]ScenarioRun_AllOutputData!AQ87 -> 0.09761875641 | D38: =[8]ScenarioRun_AllOutputData!AR87 -> 0.09839418505 | E38: =[8]ScenarioRun_AllOutputData!AS87 -> 0.09970236483 | F38: =[8]ScenarioRun_AllOutputData!AT87 -> 0.101503484 | G38: 0.09889088653
A39: RCF/Net Debt [>7%] | B39: =[8]ScenarioRun_AllOutputData!AP88 -> 0.07401036046 | C39: =[8]ScenarioRun_AllOutputData!AQ88 -> 0.07451200937 | D39: =[8]ScenarioRun_AllOutputData!AR88 -> 0.0753713551 | E39: =[8]ScenarioRun_AllOutputData!AS88 -> 0.07669898134 | F39: =[8]ScenarioRun_AllOutputData!AT88 -> 0.07844999566 | G39: 0.07580854039
A40: FFO Interest Cover [>2.5x] | B40: =[8]ScenarioRun_AllOutputData!AP83 -> 3.212715236 | C40: =[8]ScenarioRun_AllOutputData!AQ83 -> 3.267087711 | D40: =[8]ScenarioRun_AllOutputData!AR83 -> 3.317995761 | E40: =[8]ScenarioRun_AllOutputData!AS83 -> 3.370342535 | F40: =[8]ScenarioRun_AllOutputData!AT83 -> 3.427420593 | G40: 3.319112367
A42: Table A33.7. Credit Metrics (actual): NGN's proposals
A43: Parameter | B43: 2021/22 | C43: 2022/23 | D43: 2023/24 | E43: 2024/25 | F43: 2025/26 | G43: GD-2 Average
A44: Adjusted ICR [>1.4x] | B44: =[8]ScenarioRun_AllOutputData!AP153 -> 1.484363366 | C44: =[8]ScenarioRun_AllOutputData!AQ153 -> 1.519451268 | D44: =[8]ScenarioRun_AllOutputData!AR153 -> 1.421293869 | E44: =[8]ScenarioRun_AllOutputData!AS153 -> 1.476951585 | F44: =[8]ScenarioRun_AllOutputData!AT153 -> 1.503337583 | G44: =AVERAGE(B44:F44) -> 1.481079534
A45: Gearing [<75%] | B45: =[8]ScenarioRun_AllOutputData!AP150 -> 0.6681533516 | C45: =[8]ScenarioRun_AllOutputData!AQ150 -> 0.6710626677 | D45: =[8]ScenarioRun_AllOutputData!AR150 -> 0.6746139415 | E45: =[8]ScenarioRun_AllOutputData!AS150 -> 0.6759286403 | F45: =[8]ScenarioRun_AllOutputData!AT150 -> 0.6754159469 | G45: =AVERAGE(B45:F45) -> 0.6730349096
A46: FFO/Net Debt [>9%] | B46: =[8]ScenarioRun_AllOutputData!AP155 -> 0.09091745045 | C46: =[8]ScenarioRun_AllOutputData!AQ155 -> 0.0934429739 | D46: =[8]ScenarioRun_AllOutputData!AR155 -> 0.09190660419 | E46: =[8]ScenarioRun_AllOutputData!AS155 -> 0.09408939927 | F46: =[8]ScenarioRun_AllOutputData!AT155 -> 0.09595149372 | G46: 0.09326158431
A47: RCF/Net Debt [>7%] | B47: =[8]ScenarioRun_AllOutputData!AP156 -> 0.06098420384 | C47: =[8]ScenarioRun_AllOutputData!AQ156 -> 0.06363949695 | D47: =[8]ScenarioRun_AllOutputData!AR156 -> 0.06225992564 | E47: =[8]ScenarioRun_AllOutputData!AS156 -> 0.06450029287 | F47: =[8]ScenarioRun_AllOutputData!AT156 -> 0.06633983554 | G47: 0.06354475097
A48: FFO Interest Cover [>2.5x] | B48: =[8]ScenarioRun_AllOutputData!AP151 -> 3.983907413 | C48: =[8]ScenarioRun_AllOutputData!AQ151 -> 3.905582088 | D48: =[8]ScenarioRun_AllOutputData!AR151 -> 3.672557069 | E48: =[8]ScenarioRun_AllOutputData!AS151 -> 3.879876604 | F48: =[8]ScenarioRun_AllOutputData!AT151 -> 4.00317235 | G48: 3.889019105
A50: Table A33.8. Sensitivity analysis (notional), average values for GD-2
A51: Scenario | B51: AICR | C51: Gearing | D51: FFO/Net Debt | E51: RCF/Net Debt
A52: NGN Base case | B52: =AVERAGE([8]ScenarioRun_AllOutputData!$AP$85:$AT$85) -> 1.460035939 | C52: =AVERAGE([8]ScenarioRun_AllOutputData!$AP$82:$AT$82) -> 0.6065313151 | D52: =AVERAGE([8]ScenarioRun_AllOutputData!$AP$87:$AT$87) -> 0.09889088653 | E52: =AVERAGE([8]ScenarioRun_AllOutputData!$AP$88:$AT$88) -> 0.07580854039
A53: High interest rates (+1%) | B53: =AVERAGE([8]ScenarioRun_AllOutputData!$AP$187:$AT$187) -> 1.492401228 | C53: =AVERAGE([8]ScenarioRun_AllOutputData!$AP$184:$AT$184) -> 0.6030605694 | D53: =AVERAGE([8]ScenarioRun_AllOutputData!$AP$189:$AT$189) -> 0.1015263752 | E53: =AVERAGE([8]ScenarioRun_AllOutputData!$AP$190:$AT$190) -> 0.07831135517
A54: Low interest rates (-1%) | B54: =AVERAGE([8]ScenarioRun_AllOutputData!$AP$289:$AT$289) -> 1.425742518 | C54: =AVERAGE([8]ScenarioRun_AllOutputData!$AP$286:$AT$286) -> 0.609984924 | D54: =AVERAGE([8]ScenarioRun_AllOutputData!$AP$291:$AT$291) -> 0.09630737941 | E54: =AVERAGE([8]ScenarioRun_AllOutputData!$AP$292:$AT$292) -> 0.07335522465
A55: High inflation (+1%) | B55: =AVERAGE([8]ScenarioRun_AllOutputData!$AP$391:$AT$391) -> 1.494134669 | C55: =AVERAGE([8]ScenarioRun_AllOutputData!$AP$388:$AT$388) -> 0.5932827782 | D55: =AVERAGE([8]ScenarioRun_AllOutputData!$AP$393:$AT$393) -> 0.09972359792 | E55: =AVERAGE([8]ScenarioRun_AllOutputData!$AP$394:$AT$394) -> 0.07612450792
A56: Low inflation (-1%) | B56: =AVERAGE([8]ScenarioRun_AllOutputData!$AP$493:$AT$493) -> 1.4264872 | C56: =AVERAGE([8]ScenarioRun_AllOutputData!$AP$490:$AT$490) -> 0.6203109007 | D56: =AVERAGE([8]ScenarioRun_AllOutputData!$AP$495:$AT$495) -> 0.09811808751 | E56: =AVERAGE([8]ScenarioRun_AllOutputData!$AP$496:$AT$496) -> 0.07554460001
A57: High CPIH-RPI divergence (+0.5%) | B57: =AVERAGE([8]ScenarioRun_AllOutputData!$AP$595:$AT$595) -> 1.4431931 | C57: =AVERAGE([8]ScenarioRun_AllOutputData!$AP$592:$AT$592) -> 0.6133529712 | D57: =AVERAGE([8]ScenarioRun_AllOutputData!$AP$597:$AT$597) -> 0.09849701555 | E57: =AVERAGE([8]ScenarioRun_AllOutputData!$AP$598:$AT$598) -> 0.07567008061
A58: Low CPIH-RPI divergence (-0.5%) | B58: =AVERAGE([8]ScenarioRun_AllOutputData!$AP$697:$AT$697) -> 1.477016277 | C58: =AVERAGE([8]ScenarioRun_AllOutputData!$AP$694:$AT$694) -> 0.5998423931 | D58: =AVERAGE([8]ScenarioRun_AllOutputData!$AP$699:$AT$699) -> 0.09929973559 | E58: =AVERAGE([8]ScenarioRun_AllOutputData!$AP$700:$AT$700) -> 0.07596000695
A59: RPI ILD | B59: =AVERAGE([8]ScenarioRun_AllOutputData!$AP$119:$AT$119) -> 1.566222507 | C59: =AVERAGE([8]ScenarioRun_AllOutputData!$AP$116:$AT$116) -> 0.6064980814 | D59: =AVERAGE([8]ScenarioRun_AllOutputData!$AP$121:$AT$121) -> 0.09890997665 | E59: =AVERAGE([8]ScenarioRun_AllOutputData!$AP$122:$AT$122) -> 0.07582636613
A60: High ILD proportion (+5%) | B60: =AVERAGE([8]ScenarioRun_AllOutputData!$AP$1513:$AT$1513) -> 1.498011412 | C60: =AVERAGE([8]ScenarioRun_AllOutputData!$AP$1510:$AT$1510) -> 0.6065276944 | D60: =AVERAGE([8]ScenarioRun_AllOutputData!$AP$1515:$AT$1515) -> 0.09889292534 | E60: =AVERAGE([8]ScenarioRun_AllOutputData!$AP$1516:$AT$1516) -> 0.07581044143
A61: Low ILD proportion (-5%) | B61: =AVERAGE([8]ScenarioRun_AllOutputData!$AP$1615:$AT$1615) -> 1.423938936 | C61: =AVERAGE([8]ScenarioRun_AllOutputData!$AP$1612:$AT$1612) -> 0.6065349358 | D61: =AVERAGE([8]ScenarioRun_AllOutputData!$AP$1617:$AT$1617) -> 0.09888884774 | E61: =AVERAGE([8]ScenarioRun_AllOutputData!$AP$1618:$AT$1618) -> 0.07580663936
A62: Totex underperformance (-10%) | B62: =AVERAGE([8]ScenarioRun_AllOutputData!$AP$1105:$AT$1105) -> 1.378457986 | C62: =AVERAGE([8]ScenarioRun_AllOutputData!$AP$1102:$AT$1102) -> 0.6226120145 | D62: =AVERAGE([8]ScenarioRun_AllOutputData!$AP$1107:$AT$1107) -> 0.09304638799 | E62: =AVERAGE([8]ScenarioRun_AllOutputData!$AP$1108:$AT$1108) -> 0.07055573633
A63: Totex outperformance (+10%) | B63: =AVERAGE([8]ScenarioRun_AllOutputData!$AP$1003:$AT$1003) -> 1.547969331 | C63: =AVERAGE([8]ScenarioRun_AllOutputData!$AP$1000:$AT$1000) -> 0.5899354462 | D63: =AVERAGE([8]ScenarioRun_AllOutputData!$AP$1005:$AT$1005) -> 0.105288644 | E63: =AVERAGE([8]ScenarioRun_AllOutputData!$AP$1006:$AT$1006) -> 0.08155471648
A64: Zero RoRe outperformance | B64: =AVERAGE([8]ScenarioRun_AllOutputData!$AP$1207:$AT$1207) -> 1.460035939 | C64: =AVERAGE([8]ScenarioRun_AllOutputData!$AP$1204:$AT$1204) -> 0.6065313151 | D64: =AVERAGE([8]ScenarioRun_AllOutputData!$AP$1209:$AT$1209) -> 0.09889088653 | E64: =AVERAGE([8]ScenarioRun_AllOutputData!$AP$1210:$AT$1210) -> 0.07580854039
A65: RoRe outperformance (+2%) | B65: =AVERAGE([8]ScenarioRun_AllOutputData!$AP$1309:$AT$1309) -> 1.862381233 | C65: =AVERAGE([8]ScenarioRun_AllOutputData!$AP$1306:$AT$1306) -> 0.5824172728 | D65: =AVERAGE([8]ScenarioRun_AllOutputData!$AP$1311:$AT$1311) -> 0.1179206677 | E65: =AVERAGE([8]ScenarioRun_AllOutputData!$AP$1312:$AT$1312) -> 0.09387586676
A66: RoRe underperformance (-2%) | B66: =AVERAGE([8]ScenarioRun_AllOutputData!$AP$1411:$AT$1411) -> 1.084783607 | C66: =AVERAGE([8]ScenarioRun_AllOutputData!$AP$1408:$AT$1408) -> 0.6306453574 | D66: =AVERAGE([8]ScenarioRun_AllOutputData!$AP$1413:$AT$1413) -> 0.08141408693 | E66: =AVERAGE([8]ScenarioRun_AllOutputData!$AP$1414:$AT$1414) -> 0.05920481524
A68: Table A33.9. Sensitivity analysis (actual), average values for GD-2
A69: Scenario | B69: AICR | C69: Gearing | D69: FFO/Net Debt | E69: RCF/Net Debt
A70: NGN Base case | B70: =AVERAGE([8]ScenarioRun_AllOutputData!$AP$153:$AT$153) -> 1.481079534 | C70: =AVERAGE([8]ScenarioRun_AllOutputData!$AP$150:$AT$150) -> 0.6730349096 | D70: =AVERAGE([8]ScenarioRun_AllOutputData!$AP$155:$AT$155) -> 0.09326158431 | E70: =AVERAGE([8]ScenarioRun_AllOutputData!$AP$156:$AT$156) -> 0.06354475097
A71: High interest rates (+1%) | B71: =AVERAGE([8]ScenarioRun_AllOutputData!$AP$255:$AT$255) -> 1.412491699 | C71: =AVERAGE([8]ScenarioRun_AllOutputData!$AP$252:$AT$252) -> 0.6734202717 | D71: =AVERAGE([8]ScenarioRun_AllOutputData!$AP$257:$AT$257) -> 0.09267019741 | E71: =AVERAGE([8]ScenarioRun_AllOutputData!$AP$258:$AT$258) -> 0.0629700466
A72: Low interest rates (-1%) | B72: =AVERAGE([8]ScenarioRun_AllOutputData!$AP$357:$AT$357) -> 1.575814874 | C72: =AVERAGE([8]ScenarioRun_AllOutputData!$AP$354:$AT$354) -> 0.6726564738 | D72: =AVERAGE([8]ScenarioRun_AllOutputData!$AP$359:$AT$359) -> 0.0938513519 | E72: =AVERAGE([8]ScenarioRun_AllOutputData!$AP$360:$AT$360) -> 0.06411802108
A73: High inflation (+1%) | B73: =AVERAGE([8]ScenarioRun_AllOutputData!$AP$459:$AT$459) -> 1.540703011 | C73: =AVERAGE([8]ScenarioRun_AllOutputData!$AP$456:$AT$456) -> 0.6402487875 | D73: =AVERAGE([8]ScenarioRun_AllOutputData!$AP$461:$AT$461) -> 0.09923615633 | E73: =AVERAGE([8]ScenarioRun_AllOutputData!$AP$462:$AT$462) -> 0.06947856093
A74: Low inflation (-1%) | B74: =AVERAGE([8]ScenarioRun_AllOutputData!$AP$561:$AT$561) -> 1.424003837 | C74: =AVERAGE([8]ScenarioRun_AllOutputData!$AP$558:$AT$558) -> 0.7079577155 | D74: =AVERAGE([8]ScenarioRun_AllOutputData!$AP$563:$AT$563) -> 0.08756015293 | E74: =AVERAGE([8]ScenarioRun_AllOutputData!$AP$564:$AT$564) -> 0.05788230825
A75: High CPIH-RPI divergence (+0.5%) | B75: =AVERAGE([8]ScenarioRun_AllOutputData!$AP$663:$AT$663) -> 1.465218929 | C75: =AVERAGE([8]ScenarioRun_AllOutputData!$AP$660:$AT$660) -> 0.6832140592 | D75: =AVERAGE([8]ScenarioRun_AllOutputData!$AP$665:$AT$665) -> 0.09157991697 | E75: =AVERAGE([8]ScenarioRun_AllOutputData!$AP$666:$AT$666) -> 0.06186935935
A76: Low CPIH-RPI divergence (-0.5%) | B76: =AVERAGE([8]ScenarioRun_AllOutputData!$AP$765:$AT$765) -> 1.497202069 | C76: =AVERAGE([8]ScenarioRun_AllOutputData!$AP$762:$AT$762) -> 0.6630856942 | D76: =AVERAGE([8]ScenarioRun_AllOutputData!$AP$767:$AT$767) -> 0.09496897417 | E76: =AVERAGE([8]ScenarioRun_AllOutputData!$AP$768:$AT$768) -> 0.06524564954
A77: RPI ILD | B77: =AVERAGE([8]ScenarioRun_AllOutputData!$AP$153:$AT$153) -> 1.481079534 | C77: =AVERAGE([8]ScenarioRun_AllOutputData!$AP$150:$AT$150) -> 0.6730349096 | D77: =AVERAGE([8]ScenarioRun_AllOutputData!$AP$155:$AT$155) -> 0.09326158431 | E77: =AVERAGE([8]ScenarioRun_AllOutputData!$AP$156:$AT$156) -> 0.06354475097
A78: High ILD proportion (+5%) | B78: =AVERAGE([8]ScenarioRun_AllOutputData!$AP$1581:$AT$1581) -> 1.481086709 | C78: =AVERAGE([8]ScenarioRun_AllOutputData!$AP$1578:$AT$1578) -> 0.6730342941 | D78: =AVERAGE([8]ScenarioRun_AllOutputData!$AP$1583:$AT$1583) -> 0.09326189168 | E78: =AVERAGE([8]ScenarioRun_AllOutputData!$AP$1584:$AT$1584) -> 0.06354503117
A79: Low ILD proportion (-5%) | B79: =AVERAGE([8]ScenarioRun_AllOutputData!$AP$1683:$AT$1683) -> 1.48107236 | C79: =AVERAGE([8]ScenarioRun_AllOutputData!$AP$1680:$AT$1680) -> 0.6730355251 | D79: =AVERAGE([8]ScenarioRun_AllOutputData!$AP$1685:$AT$1685) -> 0.09326127694 | E79: =AVERAGE([8]ScenarioRun_AllOutputData!$AP$1686:$AT$1686) -> 0.06354447077
A80: Totex underperformance (-10%) | B80: =AVERAGE([8]ScenarioRun_AllOutputData!$AP$1173:$AT$1173) -> 1.402465948 | C80: =AVERAGE([8]ScenarioRun_AllOutputData!$AP$1170:$AT$1170) -> 0.6894641695 | D80: =AVERAGE([8]ScenarioRun_AllOutputData!$AP$1175:$AT$1175) -> 0.08798555882 | E80: =AVERAGE([8]ScenarioRun_AllOutputData!$AP$1176:$AT$1176) -> 0.05934759709
A81: Totex outperformance (+10%) | B81: =AVERAGE([8]ScenarioRun_AllOutputData!$AP$1071:$AT$1071) -> 1.55969312 | C81: =AVERAGE([8]ScenarioRun_AllOutputData!$AP$1068:$AT$1068) -> 0.6560991392 | D81: =AVERAGE([8]ScenarioRun_AllOutputData!$AP$1073:$AT$1073) -> 0.09893472993 | E81: =AVERAGE([8]ScenarioRun_AllOutputData!$AP$1074:$AT$1074) -> 0.06804132913
A82: Zero RoRe outperformance | B82: =AVERAGE([8]ScenarioRun_AllOutputData!$AP$1275:$AT$1275) -> 1.481079534 | C82: =AVERAGE([8]ScenarioRun_AllOutputData!$AP$1272:$AT$1272) -> 0.6730349096 | D82: =AVERAGE([8]ScenarioRun_AllOutputData!$AP$1277:$AT$1277) -> 0.09326158431 | E82: =AVERAGE([8]ScenarioRun_AllOutputData!$AP$1278:$AT$1278) -> 0.06354475097
A83: RoRe outperformance (+2%) | B83: =AVERAGE([8]ScenarioRun_AllOutputData!$AP$1377:$AT$1377) -> 1.721966802 | C83: =AVERAGE([8]ScenarioRun_AllOutputData!$AP$1374:$AT$1374) -> 0.6614016039 | D83: =AVERAGE([8]ScenarioRun_AllOutputData!$AP$1379:$AT$1379) -> 0.1030302454 | E83: =AVERAGE([8]ScenarioRun_AllOutputData!$AP$1380:$AT$1380) -> 0.07278809775
A84: RoRe underperformance (-2%) | B84: =AVERAGE([8]ScenarioRun_AllOutputData!$AP$1479:$AT$1479) -> 1.240192266 | C84: =AVERAGE([8]ScenarioRun_AllOutputData!$AP$1476:$AT$1476) -> 0.6846682152 | D84: =AVERAGE([8]ScenarioRun_AllOutputData!$AP$1481:$AT$1481) -> 0.08396884743 | E84: =AVERAGE([8]ScenarioRun_AllOutputData!$AP$1482:$AT$1482) -> 0.05474876375

Sheet Scenario results (NGN)
A1: Scenario | B1: AICR | C1: Gearing | D1: FFO/Net Debt | E1: RCF/Net Debt | F1: Moodys' implied rating | H1: AICR | I1: Gearing | J1: FFO/Net Debt | K1: RCF/Net Debt | L1: Moodys' implied rating
A2: Baa1 Target | B2: ='Rating (Ofgem-notional)'!$C$77 -> 1.4 | C2: ='Rating (Ofgem-notional)'!$H$78 -> 0.75 | D2: ='Rating (Ofgem-notional)'!$D$77 -> 0.11 | E2: ='Rating (Ofgem-notional)'!$E$77 -> 0.07 | F2: ='Rating (Ofgem-notional)'!$H$13 -> 8.49 | H2: ='Rating (Ofgem-notional)'!$C$77 -> 1.4 | I2: ='Rating (Ofgem-notional)'!$H$78 -> 0.75 | J2: ='Rating (Ofgem-notional)'!$D$77 -> 0.11 | K2: ='Rating (Ofgem-notional)'!$E$77 -> 0.07 | L2: ='Rating (Ofgem-notional)'!$H$13 -> 8.49
A3: Baseline | B3: 1.3 | C3: 0.7 | D3: 0.09 | E3: 0.05 | F3: ='Rating (Ofgem-notional)'!$H$14 -> 9.49 | H3: 1.3 | I3: 0.7 | J3: 0.09 | K3: 0.05 | L3: ='Rating (Ofgem-notional)'!$H$14 -> 9.49
A4: Active selection
A5: RoRe underperformance (-2%) | B5: =INDEX(NGN!B$52:B$66,MATCH(ActiveScenario,NGN!$A$52:$A$66,0)) -> 1.084783607 | C5: =INDEX(NGN!C$52:C$66,MATCH(ActiveScenario,NGN!$A$52:$A$66,0)) -> 0.6306453574 | D5: =INDEX(NGN!D$52:D$66,MATCH(ActiveScenario,NGN!$A$52:$A$66,0)) -> 0.08141408693 | E5: =INDEX(NGN!E$52:E$66,MATCH(ActiveScenario,NGN!$A$52:$A$66,0)) -> 0.05920481524 | F5: ='Rating (NGN-notional)'!$N$63 -> Baa3 | G5: ='Rating (NGN-notional)'!N61 -> 9.60251046 | H5: =INDEX(NGN!B$70:B$84,MATCH(ActiveScenario,NGN!$A$52:$A$66,0)) -> 1.240192266 | I5: =INDEX(NGN!C$70:C$84,MATCH(ActiveScenario,NGN!$A$52:$A$66,0)) -> 0.6846682152 | J5: =INDEX(NGN!D$70:D$84,MATCH(ActiveScenario,NGN!$A$52:$A$66,0)) -> 0.08396884743 | K5: =INDEX(NGN!E$70:E$84,MATCH(ActiveScenario,NGN!$A$52:$A$66,0)) -> 0.05474876375 | L5: ='Rating (NGN-actual)'!N63 -> Baa2 | M5: ='Rating (NGN-actual)'!N61 -> 8.784753363
B6: Notional Financial Structure | H6: Actual Financial Structure
A7: NGN Base case | B7: 1.460035939 | C7: 0.6065313151 | D7: 0.09889088653 | E7: 0.07580854039 | F7: Baa1 | G7: 8.052319842 | H7: 1.481079534 | I7: 0.6730349096 | J7: 0.09326158431 | K7: 0.06354475097 | L7: Baa1 | M7: 8.312320917
A8: High interest rates (+1%) | B8: 1.492401228 | C8: 0.6030605694 | D8: 0.1015263752 | E8: 0.07831135517 | F8: Baa1 | G8: 8.052319842 | H8: 1.412491699 | I8: 0.6734202717 | J8: 0.09267019741 | K8: 0.0629700466 | L8: Baa1 | M8: 8.312320917
A9: Low interest rates (-1%) | B9: 1.425742518 | C9: 0.609984924 | D9: 0.09630737941 | E9: 0.07335522465 | F9: Baa1 | G9: 8.052319842 | H9: 1.575814874 | I9: 0.6726564738 | J9: 0.0938513519 | K9: 0.06411802108 | L9: Baa1 | M9: 8.312320917
A10: High inflation (+1%) | B10: 1.494134669 | C10: 0.5932827782 | D10: 0.09972359792 | E10: 0.07612450792 | F10: Baa1 | G10: 7.73747495 | H10: 1.540703011 | I10: 0.6402487875 | J10: 0.09923615633 | K10: 0.06947856093 | L10: Baa1 | M10: 8.312320917
A11: Low inflation (-1%) | B11: 1.4264872 | C11: 0.6203109007 | D11: 0.09811808751 | E11: 0.07554460001 | F11: Baa1 | G11: 8.052319842 | H11: 1.424003837 | I11: 0.7079577155 | J11: 0.08756015293 | K11: 0.05788230825 | L11: Baa1 | M11: 8.312320917
A12: High CPIH-RPI divergence (+0.5%) | B12: 1.4431931 | C12: 0.6133529712 | D12: 0.09849701555 | E12: 0.07567008061 | F12: Baa1 | G12: 8.052319842 | H12: 1.465218929 | I12: 0.6832140592 | J12: 0.09157991697 | K12: 0.06186935935 | L12: Baa1 | M12: 8.312320917
A13: Low CPIH-RPI divergence (-0.5%) | B13: 1.477016277 | C13: 0.5998423931 | D13: 0.09929973559 | E13: 0.07596000695 | F13: Baa1 | G13: 7.73747495 | H13: 1.497202069 | I13: 0.6630856942 | J13: 0.09496897417 | K13: 0.06524564954 | L13: Baa1 | M13: 8.312320917
A14: RPI ILD | B14: 1.566222507 | C14: 0.6064980814 | D14: 0.09890997665 | E14: 0.07582636613 | F14: Baa1 | G14: 8.052319842 | H14: 1.481079534 | I14: 0.6730349096 | J14: 0.09326158431 | K14: 0.06354475097 | L14: Baa1 | M14: 8.312320917
A15: High ILD proportion (+5%) | B15: 1.498011412 | C15: 0.6065276944 | D15: 0.09889292534 | E15: 0.07581044143 | F15: Baa1 | G15: 8.052319842 | H15: 1.481086709 | I15: 0.6730342941 | J15: 0.09326189168 | K15: 0.06354503117 | L15: Baa1 | M15: 8.312320917
A16: Low ILD proportion (-5%) | B16: 1.423938936 | C16: 0.6065349358 | D16: 0.09888884774 | E16: 0.07580663936 | F16: Baa1 | G16: 8.052319842 | H16: 1.48107236 | I16: 0.6730355251 | J16: 0.09326127694 | K16: 0.06354447077 | L16: Baa1 | M16: 8.312320917
A17: Totex underperformance (-10%) | B17: 1.378457986 | C17: 0.6226120145 | D17: 0.09304638799 | E17: 0.07055573633 | F17: Baa2 | G17: 8.555966698 | H17: 1.402465948 | I17: 0.6894641695 | J17: 0.08798555882 | K17: 0.05934759709 | L17: Baa1 | M17: 8.312320917
A18: Totex outperformance (+10%) | B18: 1.547969331 | C18: 0.5899354462 | D18: 0.105288644 | E18: 0.08155471648 | F18: Baa1 | G18: 7.73747495 | H18: 1.55969312 | I18: 0.6560991392 | J18: 0.09893472993 | K18: 0.06804132913 | L18: Baa1 | M18: 8.312320917
A19: Zero RoRe outperformance | B19: 1.460035939 | C19: 0.6065313151 | D19: 0.09889088653 | E19: 0.07580854039 | F19: Baa1 | G19: 8.052319842 | H19: 1.481079534 | I19: 0.6730349096 | J19: 0.09326158431 | K19: 0.06354475097 | L19: Baa1 | M19: 8.312320917
A20: RoRe outperformance (+2%) | B20: 1.862381233 | C20: 0.5824172728 | D20: 0.1179206677 | E20: 0.09387586676 | F20: A3 | G20: 6.962760131 | H20: 1.721966802 | I20: 0.6614016039 | J20: 0.1030302454 | K20: 0.07278809775 | L20: Baa1 | M20: 8.052319842
A21: RoRe underperformance (-2%) | B21: 1.084783607 | C21: 0.6306453574 | D21: 0.08141408693 | E21: 0.05920481524 | F21: Baa3 | G21: 9.60251046 | H21: 1.240192266 | I21: 0.6846682152 | J21: 0.08396884743 | K21: 0.05474876375 | L21: Baa2 | M21: 8.784753363

Sheet Rating (NGN-notional) (hidden)
A1: Moody's rating calculator
B3: Numerical score | E3: Penalty Weights | H3: Grid Rating
B5: Caa | C5: 18 | E5: Caa | F5: 5 | H5: 0 | I5: Aaa
B6: B | C6: 15 | E6: B | F6: 3 | H6: 1.49 | I6: Aa1
B7: Ba | C7: 12 | E7: Ba | F7: 2 | H7: 2.49 | I7: Aa2
B8: Baa | C8: 9 | E8: Baa | F8: 1.15 | H8: 3.49 | I8: Aa3
B9: A | C9: 6 | E9: Aaa | F9: 1 | H9: 4.49 | I9: A1
B10: Aa | C10: 3 | E10: Aa | F10: 1 | H10: 5.49 | I10: A2
B11: Aaa | C11: 1 | E11: A | F11: 1 | H11: 6.49 | I11: A3
H12: 7.49 | I12: Baa1
H13: 8.49 | I13: Baa2
H14: 9.49 | I14: Baa3
H15: 10.49 | I15: Ba1
H16: 11.49 | I16: Ba2
H17: 12.49 | I17: Ba3
H18: 13.49 | I18: B1
H19: 14.49 | I19: B2
H20: 15.49 | I20: B3
H21: 16.49 | I21: Caa1
H22: 17.49 | I22: Caa2
H23: 18.49 | I23: Caa3
A26: Criteria
K30: Average rating | L30: Penalty score | M30: Numerical score | N30: Total score
H31: Weight
B32: Regulatory Environment & Ownership Model | H32: =SUM(H33:H36) -> 0.4
B33: Stability & Predictability of Regulatory Regime | H33: 0.15 | K33: Aaa | L33: =IF(K33=0,0,INDEX($F$5:$F$11,MATCH(K33,$E$5:$E$11,0))) -> 1 | M33: =IF(K33=0,0,INDEX($C$5:$C$11,MATCH(K33,$B$5:$B$11,0))) -> 1 | N33: =$H33*L33/SUMPRODUCT($H$32:$H$46,L$32:L$46)*M33 -> 0.10041841
B34: Asset Ownership Model | H34: 0.05 | K34: Aa | L34: =IF(K34=0,0,INDEX($F$5:$F$11,MATCH(K34,$E$5:$E$11,0))) -> 1 | M34: =IF(K34=0,0,INDEX($C$5:$C$11,MATCH(K34,$B$5:$B$11,0))) -> 3 | N34: =$H34*L34/SUMPRODUCT($H$32:$H$46,L$32:L$46)*M34 -> 0.10041841
B35: Cost & Investment Recovery | H35: 0.15 | K35: A | L35: =IF(K35=0,0,INDEX($F$5:$F$11,MATCH(K35,$E$5:$E$11,0))) -> 1 | M35: =IF(K35=0,0,INDEX($C$5:$C$11,MATCH(K35,$B$5:$B$11,0))) -> 6 | N35: =$H35*L35/SUMPRODUCT($H$32:$H$46,L$32:L$46)*M35 -> 0.6025104603
B36: Revenue Risk | H36: 0.05 | K36: Aa | L36: =IF(K36=0,0,INDEX($F$5:$F$11,MATCH(K36,$E$5:$E$11,0))) -> 1 | M36: =IF(K36=0,0,INDEX($C$5:$C$11,MATCH(K36,$B$5:$B$11,0))) -> 3 | N36: =$H36*L36/SUMPRODUCT($H$32:$H$46,L$32:L$46)*M36 -> 0.10041841
B38: Scale & Complexity of Capital Program | H38: 0.1 | K38: A | L38: =IF(K38=0,0,INDEX($F$5:$F$11,MATCH(K38,$E$5:$E$11,0))) -> 1 | M38: =IF(K38=0,0,INDEX($C$5:$C$11,MATCH(K38,$B$5:$B$11,0))) -> 6 | N38: =$H38*L38/SUMPRODUCT($H$32:$H$46,L$32:L$46)*M38 -> 0.4016736402
B40: Financial Policy | H40: 0.1 | K40: Ba | L40: =IF(K40=0,0,INDEX($F$5:$F$11,MATCH(K40,$E$5:$E$11,0))) -> 2 | M40: =IF(K40=0,0,INDEX($C$5:$C$11,MATCH(K40,$B$5:$B$11,0))) -> 12 | N40: =$H40*L40/SUMPRODUCT($H$32:$H$46,L$32:L$46)*M40 -> 1.606694561
B42: Leverage & Coverage | H42: =SUM(H43:H46) -> 0.4
B43: AICR | H43: 0.1 | K43: =D88 -> B | L43: =IF(K43=0,0,INDEX($F$5:$F$11,MATCH(K43,$E$5:$E$11,0))) -> 3 | M43: =IF(K43=0,0,INDEX($C$5:$C$11,MATCH(K43,$B$5:$B$11,0))) -> 15 | N43: =$H43*L43/SUMPRODUCT($H$32:$H$46,L$32:L$46)*M43 -> 3.012552301
B44: Net Debt / Regulatory Asset Value | H44: 0.125 | K44: =D91 -> Baa | L44: =IF(K44=0,0,INDEX($F$5:$F$11,MATCH(K44,$E$5:$E$11,0))) -> 1.15 | M44: =IF(K44=0,0,INDEX($C$5:$C$11,MATCH(K44,$B$5:$B$11,0))) -> 9 | N44: =$H44*L44/SUMPRODUCT($H$32:$H$46,L$32:L$46)*M44 -> 0.8661087866
B45: FFO / Net Debt | H45: 0.125 | K45: =D94 -> Ba | L45: =IF(K45=0,0,INDEX($F$5:$F$11,MATCH(K45,$E$5:$E$11,0))) -> 2 | M45: =IF(K45=0,0,INDEX($C$5:$C$11,MATCH(K45,$B$5:$B$11,0))) -> 12 | N45: =$H45*L45/SUMPRODUCT($H$32:$H$46,L$32:L$46)*M45 -> 2.008368201
B46: RCF / Net Debt | H46: 0.05 | K46: =D97 -> Ba | L46: =IF(K46=0,0,INDEX($F$5:$F$11,MATCH(K46,$E$5:$E$11,0))) -> 2 | M46: =IF(K46=0,0,INDEX($C$5:$C$11,MATCH(K46,$B$5:$B$11,0))) -> 12 | N46: =$H46*L46/SUMPRODUCT($H$32:$H$46,L$32:L$46)*M46 -> 0.8033472803
B48: Total | H48: =H32+H38+H40+H42 -> 1 | N48: =SUM(N33:N46) -> 9.60251046
B50: Overall rating | N50: =VLOOKUP(N48,$H$5:$I$23,2) -> Baa3
A55: Notching Adjustments
B57: Structural Considerations and Sources of Rating Uplift from Creditor Protection
B61: Total score after adjustments | N61: =N48+N57 -> 9.60251046
B63: Overall adjusted rating | N63: =VLOOKUP(N61,$H$5:$I$23,2) -> Baa3
A68: Factor 4: Leverage and Coverage
A70: Moody's Ratio thresholds
C72: (Ratio greater than)
C73: AICR | D73: FFO / Net Debt | E73: RCF / Net Debt | H73: Net Debt / RAV
B74: Caa | C74: 0 | E74: -0.1 | G74: Aaa | H74: 0
B75: B | C75: 0.9 | D75: 0 | E75: -0.04 | G75: Aa | H75: 0.3
B76: Ba | C76: 1.1 | D76: 0.05 | E76: 0.01 | G76: A | H76: 0.45
B77: Baa | C77: 1.4 | D77: 0.11 | E77: 0.07 | G77: Baa | H77: 0.6
B78: A | C78: 2 | D78: 0.18 | E78: 0.14 | G78: Ba | H78: 0.75
B79: Aa | C79: 3.5 | D79: 0.26 | E79: 0.21 | G79: B | H79: 0.9
B80: Aaa | C80: 5.5 | D80: 0.35 | E80: 0.3 | G80: Caa | H80: 1
A83: Ratio inputs
D85: Average
B87: AICR | D87: ='Scenario results (NGN)'!B5 -> 1.084783607
B88: Category rating | D88: =IFERROR(INDEX($B$74:$B$80,MATCH(D87,$C$74:$C$80,1)),"") -> B
B90: Net Debt / Regulatory Asset Value | D90: ='Scenario results (NGN)'!C5 -> 0.6306453574
B91: Category rating | D91: =IFERROR(INDEX($G$74:$G$80,MATCH(D90,$H$74:$H$80,1)),"") -> Baa
B93: FFO / Net Debt | D93: ='Scenario results (NGN)'!D5 -> 0.08141408693
B94: Category rating | D94: =IFERROR(INDEX($B$74:$B$80,MATCH(D93,$D$74:$D$80,1)),"") -> Ba
B96: RCF / Net Debt | D96: ='Scenario results (NGN)'!E5 -> 0.05920481524
B97: Category rating | D97: =IFERROR(INDEX($B$74:$B$80,MATCH(D96,$E$74:$E$80,1)),"") -> Ba

Sheet Rating (NGN-actual) (hidden)
A1: Moody's rating calculator
B3: Numerical score | E3: Penalty Weights | H3: Grid Rating
B5: Caa | C5: 18 | E5: Caa | F5: 5 | H5: 0 | I5: Aaa
B6: B | C6: 15 | E6: B | F6: 3 | H6: 1.49 | I6: Aa1
B7: Ba | C7: 12 | E7: Ba | F7: 2 | H7: 2.49 | I7: Aa2
B8: Baa | C8: 9 | E8: Baa | F8: 1.15 | H8: 3.49 | I8: Aa3
B9: A | C9: 6 | E9: Aaa | F9: 1 | H9: 4.49 | I9: A1
B10: Aa | C10: 3 | E10: Aa | F10: 1 | H10: 5.49 | I10: A2
B11: Aaa | C11: 1 | E11: A | F11: 1 | H11: 6.49 | I11: A3
H12: 7.49 | I12: Baa1
H13: 8.49 | I13: Baa2
H14: 9.49 | I14: Baa3
H15: 10.49 | I15: Ba1
H16: 11.49 | I16: Ba2
H17: 12.49 | I17: Ba3
H18: 13.49 | I18: B1
H19: 14.49 | I19: B2
H20: 15.49 | I20: B3
H21: 16.49 | I21: Caa1
H22: 17.49 | I22: Caa2
H23: 18.49 | I23: Caa3
A26: Criteria
K30: Average rating | L30: Penalty score | M30: Numerical score | N30: Total score
H31: Weight
B32: Regulatory Environment & Ownership Model | H32: =SUM(H33:H36) -> 0.4
B33: Stability & Predictability of Regulatory Regime | H33: 0.15 | K33: Aaa | L33: =IF(K33=0,0,INDEX($F$5:$F$11,MATCH(K33,$E$5:$E$11,0))) -> 1 | M33: =IF(K33=0,0,INDEX($C$5:$C$11,MATCH(K33,$B$5:$B$11,0))) -> 1 | N33: =$H33*L33/SUMPRODUCT($H$32:$H$46,L$32:L$46)*M33 -> 0.1076233184
B34: Asset Ownership Model | H34: 0.05 | K34: Aa | L34: =IF(K34=0,0,INDEX($F$5:$F$11,MATCH(K34,$E$5:$E$11,0))) -> 1 | M34: =IF(K34=0,0,INDEX($C$5:$C$11,MATCH(K34,$B$5:$B$11,0))) -> 3 | N34: =$H34*L34/SUMPRODUCT($H$32:$H$46,L$32:L$46)*M34 -> 0.1076233184
B35: Cost & Investment Recovery | H35: 0.15 | K35: A | L35: =IF(K35=0,0,INDEX($F$5:$F$11,MATCH(K35,$E$5:$E$11,0))) -> 1 | M35: =IF(K35=0,0,INDEX($C$5:$C$11,MATCH(K35,$B$5:$B$11,0))) -> 6 | N35: =$H35*L35/SUMPRODUCT($H$32:$H$46,L$32:L$46)*M35 -> 0.6457399103
B36: Revenue Risk | H36: 0.05 | K36: Aa | L36: =IF(K36=0,0,INDEX($F$5:$F$11,MATCH(K36,$E$5:$E$11,0))) -> 1 | M36: =IF(K36=0,0,INDEX($C$5:$C$11,MATCH(K36,$B$5:$B$11,0))) -> 3 | N36: =$H36*L36/SUMPRODUCT($H$32:$H$46,L$32:L$46)*M36 -> 0.1076233184
B38: Scale & Complexity of Capital Program | H38: 0.1 | K38: A | L38: =IF(K38=0,0,INDEX($F$5:$F$11,MATCH(K38,$E$5:$E$11,0))) -> 1 | M38: =IF(K38=0,0,INDEX($C$5:$C$11,MATCH(K38,$B$5:$B$11,0))) -> 6 | N38: =$H38*L38/SUMPRODUCT($H$32:$H$46,L$32:L$46)*M38 -> 0.4304932735
B40: Financial Policy | H40: 0.1 | K40: Ba | L40: =IF(K40=0,0,INDEX($F$5:$F$11,MATCH(K40,$E$5:$E$11,0))) -> 2 | M40: =IF(K40=0,0,INDEX($C$5:$C$11,MATCH(K40,$B$5:$B$11,0))) -> 12 | N40: =$H40*L40/SUMPRODUCT($H$32:$H$46,L$32:L$46)*M40 -> 1.721973094
B42: Leverage & Coverage | H42: =SUM(H43:H46) -> 0.4
B43: AICR | H43: 0.1 | K43: =D88 -> Ba | L43: =IF(K43=0,0,INDEX($F$5:$F$11,MATCH(K43,$E$5:$E$11,0))) -> 2 | M43: =IF(K43=0,0,INDEX($C$5:$C$11,MATCH(K43,$B$5:$B$11,0))) -> 12 | N43: =$H43*L43/SUMPRODUCT($H$32:$H$46,L$32:L$46)*M43 -> 1.721973094
B44: Net Debt / Regulatory Asset Value | H44: 0.125 | K44: =D91 -> Baa | L44: =IF(K44=0,0,INDEX($F$5:$F$11,MATCH(K44,$E$5:$E$11,0))) -> 1.15 | M44: =IF(K44=0,0,INDEX($C$5:$C$11,MATCH(K44,$B$5:$B$11,0))) -> 9 | N44: =$H44*L44/SUMPRODUCT($H$32:$H$46,L$32:L$46)*M44 -> 0.9282511211
B45: FFO / Net Debt | H45: 0.125 | K45: =D94 -> Ba | L45: =IF(K45=0,0,INDEX($F$5:$F$11,MATCH(K45,$E$5:$E$11,0))) -> 2 | M45: =IF(K45=0,0,INDEX($C$5:$C$11,MATCH(K45,$B$5:$B$11,0))) -> 12 | N45: =$H45*L45/SUMPRODUCT($H$32:$H$46,L$32:L$46)*M45 -> 2.152466368
B46: RCF / Net Debt | H46: 0.05 | K46: =D97 -> Ba | L46: =IF(K46=0,0,INDEX($F$5:$F$11,MATCH(K46,$E$5:$E$11,0))) -> 2 | M46: =IF(K46=0,0,INDEX($C$5:$C$11,MATCH(K46,$B$5:$B$11,0))) -> 12 | N46: =$H46*L46/SUMPRODUCT($H$32:$H$46,L$32:L$46)*M46 -> 0.8609865471
B48: Total | H48: =H32+H38+H40+H42 -> 1 | N48: =SUM(N33:N46) -> 8.784753363
B50: Overall rating | N50: =VLOOKUP(N48,$H$5:$I$23,2) -> Baa2
A55: Notching Adjustments
B57: Structural Considerations and Sources of Rating Uplift from Creditor Protection
B61: Total score after adjustments | N61: =N48+N57 -> 8.784753363
B63: Overall adjusted rating | N63: =VLOOKUP(N61,$H$5:$I$23,2) -> Baa2
A68: Factor 4: Leverage and Coverage
A70: Moody's Ratio thresholds
C72: (Ratio greater than)
C73: AICR | D73: FFO / Net Debt | E73: RCF / Net Debt | H73: Net Debt / RAV
B74: Caa | C74: 0 | E74: -0.1 | G74: Aaa | H74: 0
B75: B | C75: 0.9 | D75: 0 | E75: -0.04 | G75: Aa | H75: 0.3
B76: Ba | C76: 1.1 | D76: 0.05 | E76: 0.01 | G76: A | H76: 0.45
B77: Baa | C77: 1.4 | D77: 0.11 | E77: 0.07 | G77: Baa | H77: 0.6
B78: A | C78: 2 | D78: 0.18 | E78: 0.14 | G78: Ba | H78: 0.75
B79: Aa | C79: 3.5 | D79: 0.26 | E79: 0.21 | G79: B | H79: 0.9
B80: Aaa | C80: 5.5 | D80: 0.35 | E80: 0.3 | G80: Caa | H80: 1
A83: Ratio inputs
D85: Average
B87: AICR | D87: ='Scenario results (NGN)'!H5 -> 1.240192266
B88: Category rating | D88: =IFERROR(INDEX($B$74:$B$80,MATCH(D87,$C$74:$C$80,1)),"") -> Ba
B90: Net Debt / Regulatory Asset Value | D90: ='Scenario results (NGN)'!I5 -> 0.6846682152
B91: Category rating | D91: =IFERROR(INDEX($G$74:$G$80,MATCH(D90,$H$74:$H$80,1)),"") -> Baa
B93: FFO / Net Debt | D93: ='Scenario results (NGN)'!J5 -> 0.08396884743
B94: Category rating | D94: =IFERROR(INDEX($B$74:$B$80,MATCH(D93,$D$74:$D$80,1)),"") -> Ba
B96: RCF / Net Debt | D96: ='Scenario results (NGN)'!K5 -> 0.05474876375
B97: Category rating | D97: =IFERROR(INDEX($B$74:$B$80,MATCH(D96,$E$74:$E$80,1)),"") -> Ba
